Workbook

Sheet 사옥신재생에너지생산현황
B1: 2022년도 사옥 신재생 에너지 생산현황
B3: 생산기간 | C3: 신재생에너지 생산량(MWh) | F3: 신재생에너지 사용비율(%) | G3: 비고
C4: 지열발전 | D4: 태양광발전 | E4: 소계
B5: 1 월 | C5: 522 | D5: 192.948 | E5: =SUM(C5:D5) -> 714.948 | F5: 36
B6: 2 월 | C6: 507 | D6: 221.279 | E6: =SUM(C6:D6) -> 728.279 | F6: 40
B7: 3 월 | C7: 278 | D7: 217.084 | E7: 495.084 | F7: 33
B8: 1/4 합계 | C8: =SUM(C5:C7) -> 1307 | D8: =SUM(D5:D7) -> 631.311 | E8: 1938.311 | F8: 36.33
B9: 4 월 | C9: 40 | D9: 259.894 | E9: 299.894 | F9: 27
B10: 5 월 | C10: 142 | D10: 298.272 | E10: 440.272 | F10: 33
B11: 6 월 | C11: 415 | D11: 228.792 | E11: 643.792 | F11: 34
B12: 2/4 합계 | C12: =SUM(C9:C11) -> 597 | D12: =SUM(D9:D11) -> 786.958 | E12: 1383.958 | F12: 31.33
B13: 7 월 | C13: 517 | D13: 210.47 | E13: 727.47 | F13: 32
B14: 8 월 | C14: 469 | D14: 176.476 | E14: 645.476 | F14: 29
B15: 9 월 | C15: 290 | D15: 191.603 | E15: 481.603 | F15: 30
B16: 3/4 합계 | C16: =SUM(C13:C15) -> 1276 | D16: =SUM(D13:D15) -> 578.549 | E16: 1854.549 | F16: 30.33
B17: 10 월 | C17: 30 | D17: 218.214 | E17: 248.214 | F17: 21
B18: 11 월 | C18: 166 | D18: 177.279 | E18: 343.279 | F18: 24
B19: 12 월 | C19: 472 | D19: 150.932 | E19: 622.932 | F19: 31
B20: 4/4 합계 | C20: =SUM(C17:C19) -> 668 | D20: =SUM(D17:D19) -> 546.425 | E20: 1214.425 | F20: 25.33
B21: 총계 | C21: =+C8+C12+C16+C20 -> 3848 | D21: =+D8+D12+D16+D20 -> 2543.243 | E21: 6391.243 | F21: 0.31

Sheet 사전정보공표 항목(명칭변경_최종) (hidden)
A1: ■ 사전정보공표 항목 및 담당부서
A2: 2019.10.1. 기준
A3: 연번 | B3: 기관명 | C3: 신규 담당 부서 | D3: BRM 1레벨 | E3: BRM 2레벨 | F3: BRM 3레벨 | G3: 공표목록 | H3: 공표항목 | I3: 항목분류 | J3: 공표주기 | K3: 공표방법 | L3: 자율공시 해당여부 | M3: 유형
A4: 1 | B4: 한국전력기술 | C4: 감사실 | D4: 산업 ·중소기업 | E4: 에너지 및 자원개발 | F4: 전력산업경쟁력강화및전력수급안정 | G4: 감사전문성 향상 추진 현황 | H4: 감사인명, 감사전문 교육이수시간 | I4: 감사∙윤리 | J4: 1년 | K4: 홈페이지 | L4: 해당
A5: 2 | B5: 한국전력기술 | C5: 감사실 | D5: 산업 ·중소기업 | E5: 에너지 및 자원개발 | F5: 전력산업경쟁력강화및전력수급안정 | G5: 옴브즈만 운영 현황 | H5: 개최일시, 회의내용, 회의결과, 건의사항에 대한 조치결과 | I5: 감사∙윤리 | J5: 1년 | K5: 홈페이지 | L5: ­
A6: 3 | B6: 한국전력기술 | C6: 감사실 | D6: 산업 ·중소기업 | E6: 에너지 및 자원개발 | F6: 전력산업경쟁력강화및전력수급안정 | G6: 감사계획 | H6: 유형(종합/특별 등), 대상(본부,부서 등), 감사일정, 감사반편성, 중점 감사사항 | I6: 감사∙윤리 | J6: 1년 | K6: 홈페이지 | L6: ­
A7: 4 | B7: 한국전력기술 | C7: 감사실 | D7: 산업 ·중소기업 | E7: 에너지 및 자원개발 | F7: 전력산업경쟁력강화및전력수급안정 | G7: 일상감사 현황 | H7: 일상감사 대상, 처리절차, 관련 법규 | I7: 감사∙윤리 | J7: 1년 | K7: 홈페이지 | L7: ­
A8: 5 | B8: 한국전력기술 | C8: 감사실 | D8: 산업 ·중소기업 | E8: 에너지 및 자원개발 | F8: 전력산업경쟁력강화및전력수급안정 | G8: 공직기강 감찰결과 | H8: 시기별 감찰개요, 감찰결과(대상, 내용, 위법사항 등), 조치결과 | I8: 감사∙윤리 | J8: 1년 | K8: 홈페이지 | L8: ­
A9: 6 | B9: 한국전력기술 | C9: 감사실 | D9: 산업 ·중소기업 | E9: 에너지 및 자원개발 | F9: 전력산업경쟁력강화및전력수급안정 | G9: 부패행위 신고 및 처리결과 | H9: 신고목록 및 내용, 조사결과(내용, 위법사항 등), 조치결과 | I9: 감사∙윤리 | J9: 1년 | K9: 홈페이지 | L9: ­
A10: 7 | B10: 한국전력기술 | C10: 감사실 | D10: 산업 ·중소기업 | E10: 에너지 및 자원개발 | F10: 전력산업경쟁력강화및전력수급안정 | G10: 범죄유형별 형사처분 임직원 현황 | H10: 범죄유형, 범죄내용, 기소여부, 재판결과, 징계내역 | I10: 감사∙윤리 | J10: 1년 | K10: 홈페이지 | L10: ­
A11: 8 | B11: 한국전력기술 | C11: 감사실 | D11: 산업 ·중소기업 | E11: 에너지 및 자원개발 | F11: 전력산업경쟁력강화및전력수급안정 | G11: 고충·다수 민원관련 조사 및 처리결과 | H11: 유형(고충, 다수), 민원목록 및 내용, 조사결과(내용, 위법사항 등), 민원처리 결과, 조치결과 | I11: 감사∙윤리 | J11: 1년 | K11: 홈페이지 | L11: ­
A12: 9 | B12: 한국전력기술 | C12: 감사실 | D12: 산업 ·중소기업 | E12: 에너지 및 자원개발 | F12: 전력산업경쟁력강화및전력수급안정 | G12: 반부패 경쟁력 추진 현황 | H12: 반부패 경쟁력 평가 추진계획, 반부패 추진 시책 | I12: 감사∙윤리 | J12: 1년 | K12: 홈페이지 | L12: ­
A13: 10 | B13: 한국전력기술 | C13: 감사실 | D13: 산업 ·중소기업 | E13: 에너지 및 자원개발 | F13: 전력산업경쟁력강화및전력수급안정 | G13: 반부패 경쟁력평가 결과 | H13: 조사대상, 기간, 평가부문(주요 평가내용), 평가결과(등급) | I13: 감사∙윤리 | J13: 1년 | K13: 홈페이지 | L13: ­
A14: 11 | B14: 한국전력기술 | C14: 감사실 | D14: 산업 ·중소기업 | E14: 에너지 및 자원개발 | F14: 전력산업경쟁력강화및전력수급안정 | G14: 종합청렴도 평가 | H14: 권익위 종합청렴도 평가결과 | I14: 감사∙윤리 | J14: 1년 | K14: 홈페이지 | L14: ­
A15: 12 | B15: 한국전력기술 | C15: 감사실 | D15: 산업 ·중소기업 | E15: 에너지 및 자원개발 | F15: 전력산업경쟁력강화및전력수급안정 | G15: 청렴도 조사 결과 | H15: 조사대상, 기간, 설문대상, 방법, 측정업무, 표본수, 측정내용, 평가결과(점수, 평균, 등급) | I15: 감사∙윤리 | J15: 1년 | K15: 홈페이지 | L15: ­
A16: 13 | B16: 한국전력기술 | C16: 감사실 | D16: 산업 ·중소기업 | E16: 에너지 및 자원개발 | F16: 전력산업경쟁력강화및전력수급안정 | G16: 재산등록 | H16: 재산등록의무자 기준 및 연 재산등록자 인원현황 | I16: 감사∙윤리 | J16: 1년 | K16: 홈페이지 | L16: ­
A17: 14 | B17: 한국전력기술 | C17: 감사실 | D17: 산업 ·중소기업 | E17: 에너지 및 자원개발 | F17: 전력산업경쟁력강화및전력수급안정 | G17: 민원처리 절차 | H17: 청원, 진정민원 접수 및 처리안내 | I17: 감사∙윤리 | J17: 1년 | K17: 홈페이지 | L17: ­
A18: 15 | B18: 한국전력기술 | C18: 미래전략연구소 | D18: 산업 ·중소기업 | E18: 에너지 및 자원개발 | F18: 전력산업경쟁력강화및전력수급안정 | G18: 단위 정부과제 목록 | H18: 단위 정부과제명, 분류체계, 단위과제 설명, 부서명, 보존기간, 보존기간 책정사유 | I18: 기술∙교육∙품질 | J18: 반기 | K18: 홈페이지 | L18: ­
A19: 16 | B19: 한국전력기술 | C19: 미래전략연구소 | D19: 산업 ·중소기업 | E19: 에너지 및 자원개발 | F19: 전력산업경쟁력강화및전력수급안정 | G19: 국내학술활동참가현황 | H19: 학술명, 학술기간, 학술기관 | I19: 기술∙교육∙품질 | J19: 반기 | K19: 홈페이지 | L19: 해당
A20: 17 | B20: 한국전력기술 | C20: 미래전략연구소 | D20: 산업 ·중소기업 | E20: 에너지 및 자원개발 | F20: 전력산업경쟁력강화및전력수급안정 | G20: 주요 연구개발과제 완료 현황 | H20: 과제명, 과제내용, 수행기간, 총연구비, 연구책임자 | I20: 기술∙교육∙품질 | J20: 1년 | K20: 홈페이지 | L20: ­
A21: 18 | B21: 한국전력기술 | C21: 미래전략연구소 | D21: 산업 ·중소기업 | E21: 에너지 및 자원개발 | F21: 전력산업경쟁력강화및전력수급안정 | G21: 국비보조 및 정부보조사업 현황 | H21: 사업명, 사업내용, 항목별 예산 내역 | I21: 기술∙교육∙품질 | J21: 1년 | K21: 홈페이지 | L21: ­
A22: 19 | B22: 한국전력기술 | C22: 미래전략연구소 | D22: 산업 ·중소기업 | E22: 에너지 및 자원개발 | F22: 전력산업경쟁력강화및전력수급안정 | G22: 논문발표 현황 | H22: 최근 3년간 국내외 논문발표 현황 총괄표(연도별, 부서별, 발표건수) | I22: 기술∙교육∙품질 | J22: 1년 | K22: 홈페이지 | L22: 해당
A23: 20 | B23: 한국전력기술 | C23: 미래전략연구소 | D23: 산업 ·중소기업 | E23: 에너지 및 자원개발 | F23: 전력산업경쟁력강화및전력수급안정 | G23: 스페셜리스트 운영 현황 | H23: 스페셜리스트 전문분야 및 직무내역 | I23: 인사∙총무∙회계 | J23: 1년 | K23: 홈페이지 | L23: 해당
A24: 21 | B24: 한국전력기술 | C24: 미래전략연구소 | D24: 산업 ·중소기업 | E24: 에너지 및 자원개발 | F24: 전력산업경쟁력강화및전력수급안정 | G24: 산학협력 현황 | H24: 산학연관 MOU 체결 현황 | I24: 홍보∙대외협력 | J24: 반기 | K24: 홈페이지 | L24: ­
A25: 22 | B25: 한국전력기술 | C25: 미래전략연구소 | D25: 산업 ·중소기업 | E25: 에너지 및 자원개발 | F25: 전력산업경쟁력강화및전력수급안정 | G25: 기록물 생산 현황 및 폐기 현황 | H25: 생산현황(생산연도별, 보존기간별(영구, 준영구, 30년, 10년, 5년, 3년, 1년), 문서 생산건수), 폐기현황(생산연도, 보존기간, 문서 폐기건수) | I25: 인사∙총무∙회계 | J25: 1년 | K25: 홈페이지 | L25: ­
A26: 23 | B26: 한국전력기술 | C26: 미래전략연구소 | D26: 산업 ·중소기업 | E26: 에너지 및 자원개발 | F26: 전력산업경쟁력강화및전력수급안정 | G26: 시청각기록물 보유현황 | H26: 생산부서, 생산연도, 보존기간, 기록물제목 | I26: 정보화 | J26: 1년 | K26: 홈페이지 | L26: ­
A27: 24 | B27: 한국전력기술 | C27: 미래전략연구소 | D27: 산업 ·중소기업 | E27: 에너지 및 자원개발 | F27: 전력산업경쟁력강화및전력수급안정 | G27: 정기간행물 등록현황 | H27: 명칭, 발행인, 등록일자, 발행주기 | I27: 정보화 | J27: 1년 | K27: 홈페이지 | L27: ­
A28: 25 | B28: 한국전력기술 | C28: 미래전략연구소 | D28: 산업 ·중소기업 | E28: 에너지 및 자원개발 | F28: 전력산업경쟁력강화및전력수급안정 | G28: 기술정보실 보유도서 목록 현황 | H28: 전문도서명, 정기간행물명, 발행처, 저자, 발행년도 | I28: 정보화 | J28: 반기 | K28: 홈페이지 | L28: 해당
A29: 26 | B29: 한국전력기술 | C29: 미래전략연구소 | D29: 산업 ·중소기업 | E29: 에너지 및 자원개발 | F29: 전력산업경쟁력강화및전력수급안정 | G29: 기술정보실 DB 검색 서비스 현황 | H29: 가입중인 외부 DB 명, 계약기관, DB소개 | I29: 정보화 | J29: 1년 | K29: 홈페이지 | L29: 해당
A30: 27 | B30: 한국전력기술 | C30: 미래전략연구소 | D30: 산업 ·중소기업 | E30: 에너지 및 자원개발 | F30: 전력산업경쟁력강화및전력수급안정 | G30: 전문도서 보유목록 현황 | H30: 전문도서명, 분야, 발행처, 저자, 출판년도 | I30: 정보화 | J30: 1년 | K30: 홈페이지 | L30: 해당
A31: 28 | B31: 한국전력기술 | C31: 미래전략연구소 | D31: 산업 ·중소기업 | E31: 에너지 및 자원개발 | F31: 전력산업경쟁력강화및전력수급안정 | G31: 열린도서관 교양 도서 현황 | H31: 교양서명, 분야, 발행처, 저자, 출판년도 | I31: 정보화 | J31: 1년 | K31: 홈페이지 | L31: 해당
A32: 29 | B32: 한국전력기술 | C32: 미래전략연구소 | D32: 산업 ·중소기업 | E32: 에너지 및 자원개발 | F32: 전력산업경쟁력강화및전력수급안정 | G32: CODE & STANDARD 운영현황 | H32: CODE & STANDARD명, 분야, 발행처, 출판년도 | I32: 정보화 | J32: 1년 | K32: 홈페이지 | L32: 해당
A33: 30 | B33: 한국전력기술 | C33: 미래전략연구소 | D33: 산업 ·중소기업 | E33: 에너지 및 자원개발 | F33: 전력산업경쟁력강화및전력수급안정 | G33: 기술정보실 국내 DB 구독서비스 현황 | H33: 가입중인 국내 DB명, 계약기관, DB소개 | I33: 정보화 | J33: 1년 | K33: 홈페이지 | L33: 해당
A34: 31 | B34: 한국전력기술 | C34: 미래전략연구소 | D34: 산업 ·중소기업 | E34: 에너지 및 자원개발 | F34: 전력산업경쟁력강화및전력수급안정 | G34: 전자저널 구독현황 | H34: 구독중인 전자저널명, 계약기관, 전자저널 소개 | I34: 정보화 | J34: 1년 | K34: 홈페이지 | L34: 해당
A35: 32 | B35: 한국전력기술 | C35: 미래전략연구소 | D35: 산업 ·중소기업 | E35: 에너지 및 자원개발 | F35: 전력산업경쟁력강화및전력수급안정 | G35: 기술정보실 해외 DB 구독 서비스 현황 | H35: 가입중인 해외 DB 명, 계약기관, DB소개 | I35: 정보화 | J35: 1년 | K35: 홈페이지 | L35: 해당
A36: 33 | B36: 한국전력기술 | C36: 미래전략연구소 | D36: 산업 ·중소기업 | E36: 에너지 및 자원개발 | F36: 전력산업경쟁력강화및전력수급안정 | G36: 비공개기록물 공개 재분류 목록 | H36: 생산기관, 생산연도, 보존기간, 기록물철명, 기록물건명, 재분류 의견 | I36: 정보화 | J36: 1년 | K36: 홈페이지 | L36: ­
A37: 34 | B37: 한국전력기술 | C37: 미래전략연구소 | D37: 산업 ·중소기업 | E37: 에너지 및 자원개발 | F37: 전력산업경쟁력강화및전력수급안정 | G37: 빅데이터활용 현황 및 계획 | H37: 빅데이터활용 현황 및 계획(정책, 전략, 홍보, 교육 등) | I37: 정보화 | J37: 반기 | K37: 홈페이지 | L37: ­ | O37: ICT솔루션실
A38: 35 | B38: 한국전력기술 | C38: 미래전략연구소 | D38: 산업 ·중소기업 | E38: 에너지 및 자원개발 | F38: 전력산업경쟁력강화및전력수급안정 | G38: 정보시스템 운영 현황 | H38: 시스템명, 시스템개요 | I38: 정보화 | J38: 1년 | K38: 홈페이지 | L38: 해당 | M38: 지원업무
A39: 36 | B39: 한국전력기술 | C39: 품질안전환경처 | D39: 산업 ·중소기업 | E39: 에너지 및 자원개발 | F39: 전력산업경쟁력강화및전력수급안정 | G39: 원자력 안전점검의 날 이행실적(A/E) | H39: 안전세미나 주제, 발표자, 참석인원, 사진 | I39: 기술∙교육∙품질 | J39: 1년 | K39: 홈페이지 | L39: 해당
A40: 37 | B40: 한국전력기술 | C40: 품질안전환경처 | D40: 산업 ·중소기업 | E40: 에너지 및 자원개발 | F40: 전력산업경쟁력강화및전력수급안정 | G40: 원자력 안전점검의 날 이행실적(NSSS) | H40: 안전세미나 주제, 발표자, 참석인원, 사진 | I40: 기술∙교육∙품질 | J40: 1년 | K40: 홈페이지 | L40: 해당
A41: 38 | B41: 한국전력기술 | C41: 품질안전환경처 | D41: 산업 ·중소기업 | E41: 에너지 및 자원개발 | F41: 전력산업경쟁력강화및전력수급안정 | G41: 품질관련 자격인증 보유현황 | H41: 인증서, 분야, 최초취득일, 유효기간, 갱신주기 | I41: 기술∙교육∙품질 | J41: 1년 | K41: 홈페이지 | L41: 해당
A42: 39 | B42: 한국전력기술 | C42: 품질안전환경처 | D42: 산업 ·중소기업 | E42: 에너지 및 자원개발 | F42: 전력산업경쟁력강화및전력수급안정 | G42: 품질경영시스템 체계 | H42: 품질보증/품질경영 문서화 체계도 등 | I42: 기술∙교육∙품질 | J42: 1년 | K42: 홈페이지 | L42: 해당
A43: 40 | B43: 한국전력기술 | C43: 품질안전환경처 | D43: 산업 ·중소기업 | E43: 에너지 및 자원개발 | F43: 전력산업경쟁력강화및전력수급안정 | G43: 안전환경경영시스템 체계 | H43: 안전, 보건, 환경 문서화 체계도 등 | I43: 기술∙교육∙품질 | J43: 1년 | K43: 홈페이지 | L43: 해당
A44: 41 | B44: 한국전력기술 | C44: 품질안전환경처 | D44: 산업 ·중소기업 | E44: 에너지 및 자원개발 | F44: 전력산업경쟁력강화및전력수급안정 | G44: 안전보건환경 관련 자격인증 보유현황 | H44: 인증서, 분야, 최초취득일, 유효기간, 갱신주기 | I44: 기술∙교육∙품질 | J44: 1년 | K44: 홈페이지 | L44: 해당
A45: 42 | B45: 한국전력기술 | C45: 품질안전환경처 | D45: 산업 ·중소기업 | E45: 에너지 및 자원개발 | F45: 전력산업경쟁력강화및전력수급안정 | G45: 하도급업체 품질감사현황 | H45: 감사 수행 건수, 감사 수검 업체 | I45: 기술∙교육∙품질 | J45: 1년 | K45: 홈페이지 | L45: 해당
A46: 43 | B46: 한국전력기술 | C46: 품질안전환경처 | D46: 산업 ·중소기업 | E46: 에너지 및 자원개발 | F46: 전력산업경쟁력강화및전력수급안정 | G46: 기관 관련 주요 법령 - 품질/안전/환경 관련 주요법령 | H46: 법, 시행령, 시행규칙 등 | I46: 법무∙노무 | J46: 1년 | K46: 홈페이지 | L46: ­
A47: 44 | B47: 한국전력기술 | C47: 인재개발교육원 | D47: 산업 ·중소기업 | E47: 에너지 및 자원개발 | F47: 전력산업경쟁력강화및전력수급안정 | G47: 이공계 대학생 대상 Power Engineering School Camp 실시 | H47: 교육일정, 교육과목, 대상인원, 참여학교 | I47: 기술∙교육∙품질 | J47: 반기 | K47: 홈페이지 | L47: 해당
A48: 45 | B48: 한국전력기술 | C48: 인재개발교육원 | D48: 산업 ·중소기업 | E48: 에너지 및 자원개발 | F48: 전력산업경쟁력강화및전력수급안정 | G48: 전력그룹사 대상 발전소 설계기술 수탁교육 실시 | H48: 교육일정, 교육과목, 대상인원, 회사 | I48: 기술∙교육∙품질 | J48: 반기 | K48: 홈페이지 | L48: 해당
A49: 46 | B49: 한국전력기술 | C49: 인재개발교육원 | D49: 산업 ·중소기업 | E49: 에너지 및 자원개발 | F49: 전력산업경쟁력강화및전력수급안정 | G49: 협력 중소기업 대상 맞춤형 엔지니어링 기술교육 실시 | H49: 교육일정, 교육과목, 대상인원, 참여회사 | I49: 기술∙교육∙품질 | J49: 반기 | K49: 홈페이지 | L49: 해당
A50: 47 | B50: 한국전력기술 | C50: 인재개발교육원 | D50: 산업 ·중소기업 | E50: 에너지 및 자원개발 | F50: 전력산업경쟁력강화및전력수급안정 | G50: 기술전문교육 기본과정 실시 | H50: 교육일정, 교육대상 | I50: 기술∙교육∙품질 | J50: 1년 | K50: 홈페이지 | L50: 해당
A51: 48 | B51: 한국전력기술 | C51: 인재개발교육원 | D51: 산업 ·중소기업 | E51: 에너지 및 자원개발 | F51: 전력산업경쟁력강화및전력수급안정 | G51: 기술전문교육 성숙과정 실시 | H51: 교육일정, 교육대상 | I51: 기술∙교육∙품질 | J51: 1년 | K51: 홈페이지 | L51: 해당
A52: 49 | B52: 한국전력기술 | C52: 인재개발교육원 | D52: 산업 ·중소기업 | E52: 에너지 및 자원개발 | F52: 전력산업경쟁력강화및전력수급안정 | G52: 기술전문교육 고도과정 실시 | H52: 교육일정, 교육대상 | I52: 기술∙교육∙품질 | J52: 1년 | K52: 홈페이지 | L52: 해당
A53: 50 | B53: 한국전력기술 | C53: 인재개발교육원 | D53: 산업 ·중소기업 | E53: 에너지 및 자원개발 | F53: 전력산업경쟁력강화및전력수급안정 | G53: 신입사원 직무입문교육 실시 | H53: 교육일정, 교육대상 | I53: 기술∙교육∙품질 | J53: 1년 | K53: 홈페이지 | L53: 해당
A54: 51 | B54: 한국전력기술 | C54: 인재개발교육원 | D54: 산업 ·중소기업 | E54: 에너지 및 자원개발 | F54: 전력산업경쟁력강화및전력수급안정 | G54: 경력사원 직무입문교육 실시 | H54: 교육일정, 교육대상 | I54: 기술∙교육∙품질 | J54: 1년 | K54: 홈페이지 | L54: 해당
A55: 52 | B55: 한국전력기술 | C55: 기획처 | D55: 산업 ·중소기업 | E55: 에너지 및 자원개발 | F55: 전력산업경쟁력강화및전력수급안정 | G55: 정보공개 청구 및 처리현황 | H55: 청구현황(방법별, 공개여부 결정기간별, 기타청구처리 건수), 처리현황(전부공개, 부분공개, 비공개, 취하 등 건수) | I55: 기획∙전략 | J55: 반기 | K55: 홈페이지 | L55: ­
A56: 53 | B56: 한국전력기술 | C56: 기획처 | D56: 산업 ·중소기업 | E56: 에너지 및 자원개발 | F56: 전력산업경쟁력강화및전력수급안정 | G56: 공공데이터 개방사업 현황 | H56: 사업명, 사업목적, 사업내용, 추진현황, 관련예산, 담당부서 | I56: 기획∙전략 | J56: 반기 | K56: 홈페이지 | L56: ­
A57: 54 | B57: 한국전력기술 | C57: 기획처 | D57: 산업 ·중소기업 | E57: 에너지 및 자원개발 | F57: 전력산업경쟁력강화및전력수급안정 | G57: 공공데이터 개방목록 | H57: 공공데이터 보유목록, 책임관, 실무담당자, 전화번호 | I57: 기획∙전략 | J57: 반기 | K57: 홈페이지 | L57: ­
A58: 55 | B58: 한국전력기술 | C58: 기획처 | D58: 산업 ·중소기업 | E58: 에너지 및 자원개발 | F58: 전력산업경쟁력강화및전력수급안정 | G58: 회사 미션 및 비전 | H58: 회사 미션 및 비전 | I58: 기획∙전략 | J58: 1년 | K58: 홈페이지 | L58: 해당
A59: 56 | B59: 한국전력기술 | C59: 기획처 | D59: 산업 ·중소기업 | E59: 에너지 및 자원개발 | F59: 전력산업경쟁력강화및전력수급안정 | G59: 본부별 주요 계획 - 경영관리본부 주요 계획 | H59: 본부명, 사업개요, 주요내용, 주요 추진계획 | I59: 기획∙전략 | J59: 1년 | K59: 홈페이지 | L59: ­
A60: 57 | B60: 한국전력기술 | C60: 기획처 | D60: 산업 ·중소기업 | E60: 에너지 및 자원개발 | F60: 전력산업경쟁력강화및전력수급안정 | G60: 중장기 경영전략 | H60: 중장기 경영전략 | I60: 기획∙전략 | J60: 1년 | K60: 홈페이지 | L60: ­
A61: 58 | B61: 한국전력기술 | C61: 기획처 | D61: 산업 ·중소기업 | E61: 에너지 및 자원개발 | F61: 전력산업경쟁력강화및전력수급안정 | G61: 정부 경영실적 평가 결과 | H61: 기관평가(평가등급, 전년도 평가등급 및 평가등급 변경 사유), 기관장 평가등급(평가등급, 전년도 평가등급 및 평가등급 변경사유), 감사 평가등급(평가등급, 전년도 평가등급 및 평가등급 변경사유) | I61: 기획∙전략 | J61: 1년 | K61: 홈페이지 | L61: ­
A62: 59 | B62: 한국전력기술 | C62: 기획처 | D62: 산업 ·중소기업 | E62: 에너지 및 자원개발 | F62: 전력산업경쟁력강화및전력수급안정 | G62: 각종 위원회 구성 및 운영 | H62: 위원회명, 위원회 구성(위원수 등), 설치목적, 설치근거 | I62: 기획∙전략 | J62: 1년 | K62: 홈페이지 | L62: ­
A63: 60 | B63: 한국전력기술 | C63: 기획처 | D63: 산업 ·중소기업 | E63: 에너지 및 자원개발 | F63: 전력산업경쟁력강화및전력수급안정 | G63: 각종 위원회 심의결과 | H63: 위원회명, 회의개최 일자, 참석 위원, 심의안건, 심의결과 | I63: 기획∙전략 | J63: 1년 | K63: 홈페이지 | L63: ­
A64: 61 | B64: 한국전력기술 | C64: 기획처 | D64: 산업 ·중소기업 | E64: 에너지 및 자원개발 | F64: 전력산업경쟁력강화및전력수급안정 | G64: 기관 업무보고 자료 | H64: 일반현황, 주요 업무계획 | I64: 기획∙전략 | J64: 1년 | K64: 홈페이지 | L64: ­
A65: 62 | B65: 한국전력기술 | C65: 기획처 | D65: 산업 ·중소기업 | E65: 에너지 및 자원개발 | F65: 전력산업경쟁력강화및전력수급안정 | G65: 소속기관 경영실적평가 결과 | H65: 소속기관명, 평가기준(평가지표, 배점, 평가방법), 평가결과, 지적사항, 조치계획 및 조치결과 | I65: 기획∙전략 | J65: 1년 | K65: 홈페이지 | L65: ­
A66: 63 | B66: 한국전력기술 | C66: 기획처 | D66: 산업 ·중소기업 | E66: 에너지 및 자원개발 | F66: 전력산업경쟁력강화및전력수급안정 | G66: 사규 현황 | H66: 명칭, 제정일자, 최종공포 일자, 소관부서장, 연락처, 규정내용 | I66: 기획∙전략 | J66: 1년 | K66: 홈페이지 | L66: ­
A67: 64 | B67: 한국전력기술 | C67: 기획처 | D67: 산업 ·중소기업 | E67: 에너지 및 자원개발 | F67: 전력산업경쟁력강화및전력수급안정 | G67: 정보공개 공개 및 비공개 목록 | H67: 공개목록(청구제목, 청구내용, 담당부서), 비공개 목록(청구제목, 청구내용, 비공개사유, 담당부서) | I67: 기획∙전략 | J67: 1년 | K67: 홈페이지 | L67: ­
A68: 65 | B68: 한국전력기술 | C68: 기획처 | D68: 산업 ·중소기업 | E68: 에너지 및 자원개발 | F68: 전력산업경쟁력강화및전력수급안정 | G68: 정보공개 분야 국민의견 수렴 및 만족도 조사 결과 | H68: 분야(사전정보공표, 정보공개 청구 및 답변 등), 조사기간, 조사대상, 조사결과, 의견수렴 결과 및 개선 내용 | I68: 기획∙전략 | J68: 1년 | K68: 홈페이지 | L68: ­
A69: 66 | B69: 한국전력기술 | C69: 기획처 | D69: 산업 ·중소기업 | E69: 에너지 및 자원개발 | F69: 전력산업경쟁력강화및전력수급안정 | G69: 수입 및 지출현황 | H69: 기관 수입 및 지출실적 현황 | I69: 기획∙전략 | J69: 1년 | K69: 홈페이지 | L69: 해당
A70: 67 | B70: 한국전력기술 | C70: 기획처 | D70: 산업 ·중소기업 | E70: 에너지 및 자원개발 | F70: 전력산업경쟁력강화및전력수급안정 | G70: 사업부서 운영현황 | H70: 본부/단별 주요 사업부서 운영 목록 | I70: 기획∙전략 | J70: 1년 | K70: 홈페이지 | L70: 해당
A71: 68 | B71: 한국전력기술 | C71: 기획처 | D71: 산업 ·중소기업 | E71: 에너지 및 자원개발 | F71: 전력산업경쟁력강화및전력수급안정 | G71: 방만경영 정상화 계획 | H71: 방만경영 개선계획(기존 및 추가과제), 이행완료 여부 공개 | I71: 기획∙전략 | J71: 1년 | K71: 홈페이지 | L71: 해당
A72: 69 | B72: 한국전력기술 | C72: 기획처 | D72: 산업 ·중소기업 | E72: 에너지 및 자원개발 | F72: 전력산업경쟁력강화및전력수급안정 | G72: 임원현황 | H72: 성명, 생년, 학력, 주요경력, 임기 등 | I72: 기획∙전략 | J72: 1년 | K72: 홈페이지 | L72: 해당
A73: 70 | B73: 한국전력기술 | C73: 기획처 | D73: 산업 ·중소기업 | E73: 에너지 및 자원개발 | F73: 전력산업경쟁력강화및전력수급안정 | G73: 정보공개 운영현황 | H73: 연도별 정보공개 처리건수, 공개비율 | I73: 기획∙전략 | J73: 1년 | K73: 홈페이지 | L73: 해당
A74: 71 | B74: 한국전력기술 | C74: 기획처 | D74: 산업 ·중소기업 | E74: 에너지 및 자원개발 | F74: 전력산업경쟁력강화및전력수급안정 | G74: 알리오 공시벌점 현황 | H74: 기재부 알리오 공시 점검결과 | I74: 기획∙전략 | J74: 1년 | K74: 홈페이지 | L74: 해당
A75: 72 | B75: 한국전력기술 | C75: 기획처 | D75: 산업 ·중소기업 | E75: 에너지 및 자원개발 | F75: 전력산업경쟁력강화및전력수급안정 | G75: 중기인력운용 계획 | H75: 수립개요, 부문별 인력계획 | I75: 인사∙총무∙회계 | J75: 1년 | K75: 홈페이지 | L75: ­
A76: 73 | C76: 기획처 | D76: 산업 ·중소기업 | E76: 에너지 및 자원개발 | F76: 전력산업경쟁력강화및전력수급안정 | G76: 회사 주요사업 현황 | H76: 회사 주요사업 현황(사업명, 발주처, 사업기간, 역무, 예산 등) | I76: 기획∙전략 | J76: 1년 | K76: 홈페이지
A77: 74 | B77: 한국전력기술 | C77: 경영지원처 | D77: 산업 ·중소기업 | E77: 에너지 및 자원개발 | F77: 전력산업경쟁력강화및전력수급안정 | G77: 부서장 업무추진비성 경비 사용내역 | H77: 직위, 사용일자, 사용금액, 사용목적, 참석대상 | I77: 인사∙총무∙회계 | J77: 1년 | K77: 홈페이지 | L77: ­
A78: 75 | B78: 한국전력기술 | C78: 경영지원처 | D78: 산업 ·중소기업 | E78: 에너지 및 자원개발 | F78: 전력산업경쟁력강화및전력수급안정 | G78: 임원(기관장 제외) 업무추진비성 경비 사용내역 | H78: 직위, 사용일자, 사용금액, 사용목적, 참석대상 | I78: 인사∙총무∙회계 | J78: 매월 | K78: 홈페이지 | L78: ­
A79: 76 | B79: 한국전력기술 | C79: 경영지원처 | D79: 산업 ·중소기업 | E79: 에너지 및 자원개발 | F79: 전력산업경쟁력강화및전력수급안정 | G79: 기관장 업무추진비성 경비 사용내역 | H79: 직위, 사용일자, 사용금액, 사용목적, 참석대상 | I79: 인사∙총무∙회계 | J79: 매월 | K79: 홈페이지 | L79: 해당
A80: 77 | B80: 한국전력기술 | C80: 경영지원처 | D80: 산업 ·중소기업 | E80: 에너지 및 자원개발 | F80: 전력산업경쟁력강화및전력수급안정 | G80: 차량보유현황 | H80: 차종, 차명, 구입년도, 사용용도 | I80: 인사∙총무∙회계 | J80: 1년 | K80: 홈페이지 | L80: 해당
A81: 78 | B81: 한국전력기술 | C81: 경영지원처 | D81: 산업 ·중소기업 | E81: 에너지 및 자원개발 | F81: 전력산업경쟁력강화및전력수급안정 | G81: 청사현황 및 시설사용 안내 | H81: 청사현황(연면적, 층수, 주요시설물, 주차대수, 용도), 시설사용(시설명, 사용가능 시간, 사용료) | I81: 인사∙총무∙회계 | J81: 1년 | K81: 홈페이지 | L81: ­
A82: 79 | B82: 한국전력기술 | C82: 경영지원처 | D82: 산업 ·중소기업 | E82: 에너지 및 자원개발 | F82: 전력산업경쟁력강화및전력수급안정 | G82: 청사 에너지관리 현황 | H82: 전기, 수도, 가스 등 에너지 사용량, 전년 동월 대비 사용량과 비교, 사용 증감내역, 증감사유 | I82: 인사∙총무∙회계 | J82: 1년 | K82: 홈페이지 | L82: ­
A83: 80 | B83: 한국전력기술 | C83: 경영지원처 | D83: 산업 ·중소기업 | E83: 에너지 및 자원개발 | F83: 전력산업경쟁력강화및전력수급안정 | G83: 수익시설물 및 이용료 현황 | H83: 시설물 종류, 명칭, 소재지, 이용료 산정기준, 이용취소 절차 및 환급금액 등 | I83: 인사∙총무∙회계 | J83: 1년 | K83: 홈페이지 | L83: ­
A84: 81 | B84: 한국전력기술 | C84: 경영지원처 | D84: 산업 ·중소기업 | E84: 에너지 및 자원개발 | F84: 전력산업경쟁력강화및전력수급안정 | G84: 주요자산관리 현황 | H84: 자산명, 취득일자, 취득원가, 잔존가액, 처분현황 | I84: 인사∙총무∙회계 | J84: 1년 | K84: 홈페이지 | L84: ­
A85: 82 | B85: 한국전력기술 | C85: 경영지원처 | D85: 산업 ·중소기업 | E85: 에너지 및 자원개발 | F85: 전력산업경쟁력강화및전력수급안정 | G85: 사옥 시설물 현황 | H85: 사옥 시설물 현황 | I85: 인사∙총무∙회계 | J85: 1년 | K85: 홈페이지 | L85: 해당
A86: 83 | B86: 한국전력기술 | C86: 경영지원처 | D86: 산업 ·중소기업 | E86: 에너지 및 자원개발 | F86: 전력산업경쟁력강화및전력수급안정 | G86: 사옥관리 용역 현황 | H86: 사옥관리 용역 현황 | I86: 인사∙총무∙회계 | J86: 1년 | K86: 홈페이지 | L86: 해당
A87: 84 | B87: 한국전력기술 | C87: 경영지원처 | D87: 산업 ·중소기업 | E87: 에너지 및 자원개발 | F87: 전력산업경쟁력강화및전력수급안정 | G87: 사옥 조형물 설치 현황 | H87: 사옥 조형물 설치 현황 | I87: 인사∙총무∙회계 | J87: 1년 | K87: 홈페이지 | L87: 해당
A88: 85 | B88: 한국전력기술 | C88: 경영지원처 | D88: 산업 ·중소기업 | E88: 에너지 및 자원개발 | F88: 전력산업경쟁력강화및전력수급안정 | G88: 사옥 신재생에너지 생산 현황 | H88: 사옥 신재생에너지 생산 현황 | I88: 인사∙총무∙회계 | J88: 분기 | K88: 홈페이지 | L88: 해당
A89: 86 | B89: 한국전력기술 | C89: 경영지원처 | D89: 산업 ·중소기업 | E89: 에너지 및 자원개발 | F89: 전력산업경쟁력강화및전력수급안정 | G89: 종전부동산(사옥) 매각 현황 | H89: 종전부동산(사옥) 매각 현황 | I89: 인사∙총무∙회계 | J89: 분기 | K89: 홈페이지 | L89: 해당 | M89: 지원업무
A90: 87 | B90: 한국전력기술 | C90: 경영지원처 | D90: 산업 ·중소기업 | E90: 에너지 및 자원개발 | F90: 전력산업경쟁력강화및전력수급안정 | G90: 3년간 요약 재무상태표 | H90: 3년간 요약 재무상태표 | I90: 인사∙총무∙회계 | J90: 1년 | K90: 홈페이지 | L90: 해당 | M90: 지원업무
A91: 88 | B91: 한국전력기술 | C91: 경영지원처 | D91: 산업 ·중소기업 | E91: 에너지 및 자원개발 | F91: 전력산업경쟁력강화및전력수급안정 | G91: 3년간 요약 손익계산서 | H91: 3년간 요약 손익계산서 | I91: 인사∙총무∙회계 | J91: 1년 | K91: 홈페이지 | L91: 해당 | M91: 지원업무
A92: 89 | B92: 한국전력기술 | C92: 경영지원처 | D92: 산업 ·중소기업 | E92: 에너지 및 자원개발 | F92: 전력산업경쟁력강화및전력수급안정 | G92: 세금납부 현항 | H92: 법인세 납부현황(과세표준, 납부세액), 부가가치세 납부현황(과세표준, 매출세액, 매입세액, 납부세액), 종합부동산세 납부현황(과세표준, 납부세액), 지방세 납부현황(지방세 세목별 납부실적) | I92: 인사∙총무∙회계 | J92: 1년 | K92: 홈페이지 | L92: ­ | M92: 지원업무
A93: 90 | B93: 한국전력기술 | C93: 경영지원처 | D93: 산업 ·중소기업 | E93: 에너지 및 자원개발 | F93: 전력산업경쟁력강화및전력수급안정 | G93: 법인카드 관리 현황 | H93: 구분(본사, 사업소 등), 발급개수, 사용제한 시간 및 업종 | I93: 인사∙총무∙회계 | J93: 1년 | K93: 홈페이지 | L93: ­ | M93: 지원업무
A94: 91 | B94: 한국전력기술 | C94: 경영지원처 | D94: 산업 ·중소기업 | E94: 에너지 및 자원개발 | F94: 전력산업경쟁력강화및전력수급안정 | G94: 법인카드 포인트 발생 및 사용내역 | H94: 법인카드 포인트 발생내역(전년도 이월금액, 당해연도 발생금액, 합계금액), 사용내역(일자, 사용금액, 사용처 등) | I94: 인사∙총무∙회계 | J94: 1년 | K94: 홈페이지 | L94: ­ | M94: 지원업무
A95: 92 | B95: 한국전력기술 | C95: 경영지원처 | D95: 산업 ·중소기업 | E95: 에너지 및 자원개발 | F95: 전력산업경쟁력강화및전력수급안정 | G95: 주주총회 개최 현황 | H95: 주주총회 개최일, 주주총회 안건, 주주총회 결과 | I95: 인사∙총무∙회계 | J95: 1년 | K95: 홈페이지 | L95: 해당 | M95: 지원업무
A96: 93 | B96: 한국전력기술 | C96: 경영지원처 | D96: 산업 ·중소기업 | E96: 에너지 및 자원개발 | F96: 전력산업경쟁력강화및전력수급안정 | G96: 제출기관별 공시 실시 현황 | H96: 한국거래소 및 금융감독원 대상 공시 제출 현황 | I96: 인사∙총무∙회계 | J96: 1년 | K96: 홈페이지 | L96: 해당 | M96: 지원업무
A97: 94 | B97: 한국전력기술 | C97: 인사노무처 | D97: 산업 ·중소기업 | E97: 에너지 및 자원개발 | F97: 전력산업경쟁력강화및전력수급안정 | G97: 3년간 신규채용 현황 | H97: 인원수, 비율 | I97: 인사∙총무∙회계 | J97: 반기 | K97: 홈페이지 | L97: 해당
A98: 95 | B98: 한국전력기술 | C98: 인사노무처 | D98: 산업 ·중소기업 | E98: 에너지 및 자원개발 | F98: 전력산업경쟁력강화및전력수급안정 | G98: 임원 해외출장 내역 | H98: 직위, 출장목적, 출장기간, 출장결과 보고서 | I98: 인사∙총무∙회계 | J98: 반기 | K98: 홈페이지 | L98: ­
A99: 96 | B99: 한국전력기술 | C99: 인사노무처 | D99: 산업 ·중소기업 | E99: 에너지 및 자원개발 | F99: 전력산업경쟁력강화및전력수급안정 | G99: 3년간 직종별 인력현황 | H99: 인원수, 비율 | I99: 인사∙총무∙회계 | J99: 반기 | K99: 홈페이지 | L99: 해당
A100: 97 | B100: 한국전력기술 | C100: 인사노무처 | D100: 산업 ·중소기업 | E100: 에너지 및 자원개발 | F100: 전력산업경쟁력강화및전력수급안정 | G100: 3년간 학력별 인력현황 | H100: 인원수, 비율 | I100: 인사∙총무∙회계 | J100: 반기 | K100: 홈페이지 | L100: 해당
A101: 98 | B101: 한국전력기술 | C101: 인사노무처 | D101: 산업 ·중소기업 | E101: 에너지 및 자원개발 | F101: 전력산업경쟁력강화및전력수급안정 | G101: 비위면직자 취업제한 제도 | H101: 제도취지, 취업제한 범위 및 내용 등 | I101: 인사∙총무∙회계 | J101: 1년 | K101: 홈페이지 | L101: ­
A102: 99 | B102: 한국전력기술 | C102: 인사노무처 | D102: 산업 ·중소기업 | E102: 에너지 및 자원개발 | F102: 전력산업경쟁력강화및전력수급안정 | G102: 채용통계 | H102: 채용개요, 채용인원, 지원인원, 경쟁률 | I102: 인사∙총무∙회계 | J102: 1년 | K102: 홈페이지 | L102: ­
A103: 100 | B103: 한국전력기술 | C103: 인사노무처 | D103: 산업 ·중소기업 | E103: 에너지 및 자원개발 | F103: 전력산업경쟁력강화및전력수급안정 | G103: 직원 초과근무수당 지급 내역 | H103: 부서명, 초과근무시간, 초과근무수당 지급액, 1인당 평균 초과근무시간, 1인당 초과근무수당 지급액 | I103: 인사∙총무∙회계 | J103: 1년 | K103: 홈페이지 | L103: ­
A104: 101 | B104: 한국전력기술 | C104: 인사노무처 | D104: 산업 ·중소기업 | E104: 에너지 및 자원개발 | F104: 전력산업경쟁력강화및전력수급안정 | G104: 3년간 자격별 인력현황 | H104: 인원수, 비율 | I104: 인사∙총무∙회계 | J104: 반기 | K104: 홈페이지 | L104: 해당
A105: 102 | B105: 한국전력기술 | C105: 인사노무처 | D105: 산업 ·중소기업 | E105: 에너지 및 자원개발 | F105: 전력산업경쟁력강화및전력수급안정 | G105: 항공마일리지 발생 및 사용 내역 | H105: 항공마일리지 발생내역(전년도 이월내역, 당해연도 발생내역, 발생내역 합계), 사용내역 | I105: 인사∙총무∙회계 | J105: 1년 | K105: 홈페이지 | L105: ­
A106: 103 | B106: 한국전력기술 | C106: 인사노무처 | D106: 산업 ·중소기업 | E106: 에너지 및 자원개발 | F106: 전력산업경쟁력강화및전력수급안정 | G106: 개인정보 처리업무 위탁현황 | H106: 부서명, 수탁기관, 위탁내용 | I106: 인사∙총무∙회계 | J106: 1년 | K106: 홈페이지 | L106: ­
A107: 104 | B107: 한국전력기술 | C107: 인사노무처 | D107: 산업 ·중소기업 | E107: 에너지 및 자원개발 | F107: 전력산업경쟁력강화및전력수급안정 | G107: 개인정보 제3자 제공현황 | H107: 수탁자, 이용목적, 항목, 보유(이용)기간 | I107: 인사∙총무∙회계 | J107: 1년 | K107: 홈페이지 | L107: ­
A108: 105 | B108: 한국전력기술 | C108: 인사노무처 | D108: 산업 ·중소기업 | E108: 에너지 및 자원개발 | F108: 전력산업경쟁력강화및전력수급안정 | G108: 3년간 유연근무 현황 | H108: 인원수 | I108: 인사∙총무∙회계 | J108: 반기 | K108: 홈페이지 | L108: 해당
A109: 106 | B109: 한국전력기술 | C109: 인사노무처 | D109: 산업 ·중소기업 | E109: 에너지 및 자원개발 | F109: 전력산업경쟁력강화및전력수급안정 | G109: 대외기관 개인수상 현황 | H109: 대외기관 개인수상 내역 및 내용 | I109: 인사∙총무∙회계 | J109: 1년 | K109: 홈페이지 | L109: 해당
A110: 107 | B110: 한국전력기술 | C110: 인사노무처 | D110: 산업 ·중소기업 | E110: 에너지 및 자원개발 | F110: 전력산업경쟁력강화및전력수급안정 | G110: 대외 포상 수상내용 | H110: 포상일시, 포상훈격, 포상대상자, 포상기관, 포상제목 | I110: 홍보∙대외협력 | J110: 1년 | K110: 홈페이지 | L110: ­
A111: 108 | B111: 한국전력기술 | C111: 인사노무처 | D111: 산업 ·중소기업 | E111: 에너지 및 자원개발 | F111: 전력산업경쟁력강화및전력수급안정 | G111: 노사 협의회 현황 | H111: 협의회 구성 및 기능, 협의회 운영 방법, 노사협의회 의결사항 | I111: 법무∙노무 | J111: 반기 | K111: 홈페이지 | L111: ­
A112: 109 | B112: 한국전력기술 | C112: 인사노무처 | D112: 산업 ·중소기업 | E112: 에너지 및 자원개발 | F112: 전력산업경쟁력강화및전력수급안정 | G112: 노동쟁의 현황 | H112: 노동쟁의 현황 | I112: 법무∙노무 | J112: 반기 | K112: 홈페이지 | L112: 해당
A113: 110 | B113: 한국전력기술 | C113: 인사노무처 | D113: 산업 ·중소기업 | E113: 에너지 및 자원개발 | F113: 전력산업경쟁력강화및전력수급안정 | G113: 노사협의체 현황 | H113: 노사 위원 명단, 협의체 수, 수행업무 | I113: 법무∙노무 | J113: 1년 | K113: 홈페이지 | L113: 해당
A114: 111 | B114: 한국전력기술 | C114: 인사노무처 | D114: 산업 ·중소기업 | E114: 에너지 및 자원개발 | F114: 전력산업경쟁력강화및전력수급안정 | G114: 상급단체 전임 현황 | H114: 상급단체 전임 취임 여부, 전임자 명단 | I114: 법무∙노무 | J114: 1년 | K114: 홈페이지 | L114: 해당
A115: 112 | B115: 한국전력기술 | C115: 인사노무처 | D115: 산업 ·중소기업 | E115: 에너지 및 자원개발 | F115: 전력산업경쟁력강화및전력수급안정 | G115: 노동조합 현황 | H115: 설립일, 조직형태, 상급단체, 조직도 | I115: 법무∙노무 | J115: 1년 | K115: 홈페이지 | L115: 해당
A116: 113 | B116: 한국전력기술 | C116: 인사노무처 | D116: 산업 ·중소기업 | E116: 에너지 및 자원개발 | F116: 전력산업경쟁력강화및전력수급안정 | G116: 기금지원사업 운용계획 | H116: 기금명, 설치개요, 기금지원사업 운용계획(기본방향, 사업내용 등) | I116: 인사∙총무∙회계 | J116: 1년 | K116: 홈페이지 | L116: ­
A117: 114 | B117: 한국전력기술 | C117: 인사노무처 | D117: 산업 ·중소기업 | E117: 에너지 및 자원개발 | F117: 전력산업경쟁력강화및전력수급안정 | G117: 기금지원사업 운영현황(실적) | H117: 기금지원사업 운영현황(사업명, 지원금액, 지원기준, 지원시기 등) | I117: 인사∙총무∙회계 | J117: 1년 | K117: 홈페이지 | L117: ­
A118: 115 | B118: 한국전력기술 | C118: 인사노무처 | D118: 산업 ·중소기업 | E118: 에너지 및 자원개발 | F118: 전력산업경쟁력강화및전력수급안정 | G118: 해외 파견직원 복리후생비 등 지급 내역 | H118: 파견국가명, 직급, 항목별 복리후생비 지급내역, 기타 지원비 지급내역 | I118: 인사∙총무∙회계 | J118: 1년 | K118: 홈페이지 | L118: ­
A119: 116 | B119: 한국전력기술 | C119: 경영지원처 | D119: 산업 ·중소기업 | E119: 에너지 및 자원개발 | F119: 전력산업경쟁력강화및전력수급안정 | G119: 기숙사 운영 현황 | H119: 기숙사 운영 현황 | I119: 인사∙총무∙회계 | J119: 분기 | K119: 홈페이지 | L119: 해당
A120: 117 | B120: 한국전력기술 | C120: 인사노무처 | D120: 산업 ·중소기업 | E120: 에너지 및 자원개발 | F120: 전력산업경쟁력강화및전력수급안정 | G120: 외부기관 수상현황 | H120: 수상명, 수상자(이름 블라인드처리), 수상년도, 주관기관 | I120: 홍보∙대외협력 | J120: 1년 | K120: 홈페이지 | L120: 해당
A121: 118 | C121: 인사노무처 | D121: 산업 ·중소기업 | E121: 에너지 및 자원개발 | F121: 전력산업경쟁력강화및전력수급안정 | G121: 신입사원 공개채용 경쟁률 | H121: 당해년도 신입사원 공개채용시 직종별 응시자 수, 합격자 및 경쟁률 현황 | I121: 인사∙총무∙회계 | J121: 반기 | K121: 홈페이지
A122: 119 | B122: 한국전력기술 | C122: 계약관리실 | D122: 산업 ·중소기업 | E122: 에너지 및 자원개발 | F122: 전력산업경쟁력강화및전력수급안정 | G122: 협력업체 행동강령 | H122: 협력업체 행동강령(청렴서약, 청렴계약, 위반시 제재 등) 내용 | I122: 계약∙기타 | J122: 1년 | K122: 홈페이지 | L122: ­ | M122: 지원업무
A123: 120 | B123: 한국전력기술 | C123: 계약관리실 | D123: 산업 ·중소기업 | E123: 에너지 및 자원개발 | F123: 전력산업경쟁력강화및전력수급안정 | G123: 협력업체 포상내역 | H123: 업체명, 포상내역, 포상사유 | I123: 계약∙기타 | J123: 1년 | K123: 홈페이지 | L123: ­ | M123: 지원업무
A124: 121 | B124: 한국전력기술 | C124: 계약관리실 | D124: 산업 ·중소기업 | E124: 에너지 및 자원개발 | F124: 전력산업경쟁력강화및전력수급안정 | G124: 협력업체 상벌심의 결과 | H124: 업체명, 제재내역(제재명, 제재기간 등), 제재사유 | I124: 계약∙기타 | J124: 1년 | K124: 홈페이지 | L124: ­ | M124: 지원업무
A125: 122 | B125: 한국전력기술 | C125: 계약관리실 | D125: 산업 ·중소기업 | E125: 에너지 및 자원개발 | F125: 전력산업경쟁력강화및전력수급안정 | G125: 친환경제품 구매실적 | H125: 품목, 구매 수량 및 금액, 전체 물품 구매액 대비 비율 | I125: 계약∙기타 | J125: 1년 | K125: 홈페이지 | L125: ­ | M125: 지원업무
A126: 123 | B126: 한국전력기술 | C126: 계약관리실 | D126: 산업 ·중소기업 | E126: 에너지 및 자원개발 | F126: 전력산업경쟁력강화및전력수급안정 | G126: 노임단가 | H126: 엔지니어링 노임단가, 소프트웨어 노임단가 | I126: 계약∙기타 | J126: 1년 | K126: 홈페이지 | L126: ­ | M126: 지원업무
A127: 124 | B127: 한국전력기술 | C127: 계약관리실 | D127: 산업 ·중소기업 | E127: 에너지 및 자원개발 | F127: 전력산업경쟁력강화및전력수급안정 | G127: 계약심사 현황 | H127: 분야(전산, 토목, 건축 등), 유형(공사, 설계변경, 용역, 설비 등), 요청기관, 심사요청액, 심사액, 절감액, 우수사례 | I127: 계약∙기타 | J127: 1년 | K127: 홈페이지 | L127: ­ | M127: 지원업무
A128: 125 | B128: 한국전력기술 | C128: 계약관리실 | D128: 산업 ·중소기업 | E128: 에너지 및 자원개발 | F128: 전력산업경쟁력강화및전력수급안정 | G128: 1천만원이상 공사, 용역, 물품 계약 현황(수의계약 제외) | H128: 구분(공사, 용역, 물품), 계약명, 계약일자, 계약금액, 계약내역, 낙찰율, 계약업체(업체명, 소재지, 대표자), 담당부서 | I128: 계약∙기타 | J128: 반기 | K128: 홈페이지 | L128: ­ | M128: 지원업무
A129: 126 | B129: 한국전력기술 | C129: 계약관리실 | D129: 산업 ·중소기업 | E129: 에너지 및 자원개발 | F129: 전력산업경쟁력강화및전력수급안정 | G129: 500만원 이상 공사, 용역, 물품 수의계약 현황 | H129: 구분(공사, 용역, 물품), 계약명, 계약일자, 계약금액, 계약내역, 계약업체(업체명, 소재지, 대표자), 수의계약사유, 담당부서 | I129: 계약∙기타 | J129: 반기 | K129: 홈페이지 | L129: ­ | M129: 지원업무
A130: 127 | B130: 한국전력기술 | C130: 계약관리실 | D130: 산업 ·중소기업 | E130: 에너지 및 자원개발 | F130: 전력산업경쟁력강화및전력수급안정 | G130: 1억원이상 공사, 용역, 물품 발주계획 | H130: 구분(공사, 용역, 물품), 명칭, 시기, 물량 및 규모, 도급액, 입찰방법, 담당부서, 전화번호 | I130: 계약∙기타 | J130: 분기 | K130: 홈페이지 | L130: ­ | M130: 지원업무
A131: 128 | B131: 한국전력기술 | C131: 계약관리실 | D131: 산업 ·중소기업 | E131: 에너지 및 자원개발 | F131: 전력산업경쟁력강화및전력수급안정 | G131: 사업수행능력평가기준 | H131: 사업수행능력평가기준 | I131: 계약∙기타 | J131: 1년 | K131: 홈페이지 | L131: 해당 | M131: 지원업무
A132: 129 | B132: 한국전력기술 | C132: 계약관리실 | D132: 산업 ·중소기업 | E132: 에너지 및 자원개발 | F132: 전력산업경쟁력강화및전력수급안정 | G132: 사업보유면허관리현황 | H132: 사업보유면허관리현황 | I132: 계약∙기타 | J132: 1년 | K132: 홈페이지 | L132: 해당 | M132: 지원업무
A133: 130 | B133: 한국전력기술 | C133: 계약관리실 | D133: 산업 ·중소기업 | E133: 에너지 및 자원개발 | F133: 전력산업경쟁력강화및전력수급안정 | G133: 용역적격심사기준 | H133: 용역적격심사기준 | I133: 계약∙기타 | J133: 1년 | K133: 홈페이지 | L133: 해당 | M133: 지원업무
A134: 131 | B134: 한국전력기술 | C134: 계약관리실 | D134: 산업 ·중소기업 | E134: 에너지 및 자원개발 | F134: 전력산업경쟁력강화및전력수급안정 | G134: 물품적격심사기준 | H134: 물품적격심사기준 | I134: 계약∙기타 | J134: 1년 | K134: 홈페이지 | L134: 해당 | M134: 지원업무
A135: 132 | B135: 한국전력기술 | C135: 계약관리실 | D135: 산업 ·중소기업 | E135: 에너지 및 자원개발 | F135: 전력산업경쟁력강화및전력수급안정 | G135: 공사적격심사기준 | H135: 공사적격심사기준 | I135: 계약∙기타 | J135: 1년 | K135: 홈페이지 | L135: 해당 | M135: 지원업무
A136: 133 | B136: 한국전력기술 | C136: 계약관리실 | D136: 산업 ·중소기업 | E136: 에너지 및 자원개발 | F136: 전력산업경쟁력강화및전력수급안정 | G136: 입찰평가위원진 구성 및 운영지침 | H136: 입찰평가위원진 구성 및 운영지침 | I136: 계약∙기타 | J136: 1년 | K136: 홈페이지 | L136: 해당 | M136: 지원업무
A137: 134 | B137: 한국전력기술 | C137: 계약관리실 | D137: 산업 ·중소기업 | E137: 에너지 및 자원개발 | F137: 전력산업경쟁력강화및전력수급안정 | G137: 표준수의계약운영업무지침 | H137: 표준수의계약운영업무지침 | I137: 계약∙기타 | J137: 1년 | K137: 홈페이지 | L137: 해당 | M137: 지원업무
A138: 135 | B138: 한국전력기술 | C138: 계약관리실 | D138: 산업 ·중소기업 | E138: 에너지 및 자원개발 | F138: 전력산업경쟁력강화및전력수급안정 | G138: 협상에의한계약운영기준 | H138: 협상에의한계약운영기준 | I138: 계약∙기타 | J138: 1년 | K138: 홈페이지 | L138: 해당 | M138: 지원업무
A139: 136 | B139: 한국전력기술 | C139: 계약관리실 | D139: 산업 ·중소기업 | E139: 에너지 및 자원개발 | F139: 전력산업경쟁력강화및전력수급안정 | G139: 포괄 손해배상보험 가입 현황 | H139: 계약기간, 보험업체 | I139: 기획∙전략 | J139: 1년 | K139: 홈페이지 | L139: 해당
A140: 137 | B140: 한국전력기술 | C140: 안전보안실 | D140: 산업 ·중소기업 | E140: 에너지 및 자원개발 | F140: 전력산업경쟁력강화및전력수급안정 | G140: 보안점검 결과 | H140: 구분(자체점검, 외부기관 점검), 점검일시, 점검대상, 점검결과, 조치결과 | I140: 인사∙총무∙회계 | J140: 반기 | K140: 홈페이지 | L140: ­ | M140: 지원업무
A141: 138 | B141: 한국전력기술 | C141: 안전보안실 | D141: 산업 ·중소기업 | E141: 에너지 및 자원개발 | F141: 전력산업경쟁력강화및전력수급안정 | G141: 개인정보 보호방침 | H141: 개인정보처리 목적, 개인정보 처리 및 보유현황, 제3자제공, 위탁현황, 항목, 파기, 안전성 확보조치, 열람청구방법 등 | I141: 정보화 | J141: 1년 | K141: 홈페이지 | L141: ­ | M141: 지원업무
A142: 139 | B142: 한국전력기술 | C142: 안전보안실 | D142: 산업 ·중소기업 | E142: 에너지 및 자원개발 | F142: 전력산업경쟁력강화및전력수급안정 | G142: 개인정보파일 보유현황 | H142: 명칭, 부서명, 운영근거, 운영목적, 보유기간, 정보주체수 | I142: 정보화 | J142: 1년 | K142: 홈페이지 | L142: ­ | M142: 지원업무
A143: 140 | B143: 한국전력기술 | C143: 안전보안실 | D143: 산업 ·중소기업 | E143: 에너지 및 자원개발 | F143: 전력산업경쟁력강화및전력수급안정 | G143: 정보보안경영시스템 인증 | H143: 인증개요, 인증기관, 인증범위, 인증활동 | I143: 정보화 | J143: 1년 | K143: 홈페이지 | L143: 해당 | M143: 지원업무
A144: 141 | B144: 한국전력기술 | C144: 안전보안실 | D144: 산업 ·중소기업 | E144: 에너지 및 자원개발 | F144: 전력산업경쟁력강화및전력수급안정 | G144: 연간보안교육 계획 | H144: 교육명, 교육내용, 교육대상자, 교육일정 | I144: 정보화 | J144: 1년 | K144: 홈페이지 | L144: 해당 | M144: 지원업무
A145: 142 | B145: 한국전력기술 | C145: 안전보안실 | D145: 산업 ·중소기업 | E145: 에너지 및 자원개발 | F145: 전력산업경쟁력강화및전력수급안정 | G145: 개인정보수집 관련 홈페이지 운영 현황 | H145: 도메인명, 홈페이지명, 고유식별정보 수집, 운영방식 | I145: 정보화 | J145: 1년 | K145: 홈페이지 | L145: 해당 | M145: 지원업무
A146: 143 | B146: 한국전력기술 | C146: 안전보안실 | D146: 산업 ·중소기업 | E146: 에너지 및 자원개발 | F146: 전력산업경쟁력강화및전력수급안정 | G146: 영상정보처리기기(CCTV) 설치,운영 현황 | H146: 영상정보처리기기(CCTV) 설치 및 운영 현황 | I146: 정보화 | J146: 1년 | K146: 홈페이지 | L146: 해당 | M146: 지원업무
A147: 144 | B147: 한국전력기술 | C147: 안전보안실 | D147: 산업 ·중소기업 | E147: 에너지 및 자원개발 | F147: 전력산업경쟁력강화및전력수급안정 | G147: 외부 방문객 출입현황 | H147: 내국인,외국인 출입현황 | I147: 정보화 | J147: 1년 | K147: 홈페이지 | L147: 해당 | M147: 지원업무
A148: 145 | B148: 한국전력기술 | C148: 안전보안실 | D148: 산업 ·중소기업 | E148: 에너지 및 자원개발 | F148: 전력산업경쟁력강화및전력수급안정 | G148: 클린룸 운영 현황 | H148: 봉인씰, 노트북, CD,USB등 검수현황 | I148: 정보화 | J148: 1년 | K148: 홈페이지 | L148: 해당 | M148: 지원업무
A149: 146 | B149: 한국전력기술 | C149: 안전보안실 | D149: 산업 ·중소기업 | E149: 에너지 및 자원개발 | F149: 전력산업경쟁력강화및전력수급안정 | G149: 설계업무용 소프트웨어 등록/폐기 현황 | H149: 분야별 소프트웨어 등록/폐기 수량 | I149: 정보화 | J149: 1년 | K149: 홈페이지 | L149: 해당 | M149: 지원업무
A150: 147 | B150: 한국전력기술 | C150: 혁신성장실 | D150: 산업 ·중소기업 | E150: 에너지 및 자원개발 | F150: 전력산업경쟁력강화및전력수급안정 | G150: 고객상담 Q&A | H150: 고객상담 주요질의 및 답변 내용 | I150: 홍보∙대외협력 | J150: 1년 | K150: 홈페이지 | L150: ­
A151: 148 | B151: 한국전력기술 | C151: 혁신성장실 | D151: 산업 ·중소기업 | E151: 에너지 및 자원개발 | F151: 전력산업경쟁력강화및전력수급안정 | G151: 명예대사 및 홍보대사 운영현황 | H151: 구분(명예대사, 홍보대사), 성명, 주요경력, 위촉사유, 위촉일, 위촉기간, 활동비 지급내역 | I151: 홍보∙대외협력 | J151: 1년 | K151: 홈페이지 | L151: ­
A152: 149 | B152: 한국전력기술 | C152: 혁신성장실 | D152: 산업 ·중소기업 | E152: 에너지 및 자원개발 | F152: 전력산업경쟁력강화및전력수급안정 | G152: 정보화사업 추진현황 | H152: 유형(홈페이지 개발·개편·통합·운영, 콘텐츠 제작 등), 사업명, 사업목적, 사업내용, 사업일정, 관련예산, 담당부서 | I152: 홍보∙대외협력 | J152: 1년 | K152: 홈페이지 | L152: ­
A153: 150 | B153: 한국전력기술 | C153: 혁신성장실 | D153: 산업 ·중소기업 | E153: 에너지 및 자원개발 | F153: 전력산업경쟁력강화및전력수급안정 | G153: 홍보관, 전시관, 박물관 등 현황 | H153: 명칭, 소재지, 규모, 주요시설, 운영기간, 운영예산, 인원, 운영시간 및 이용방법 | I153: 홍보∙대외협력 | J153: 1년 | K153: 홈페이지 | L153: ­
A154: 151 | B154: 한국전력기술 | C154: 혁신성장실 | D154: 산업 ·중소기업 | E154: 에너지 및 자원개발 | F154: 전력산업경쟁력강화및전력수급안정 | G154: 각종 공모전 개최현황 | H154: 공모전명, 공모기간, 수상내역, 수상작 소개, 담당자, 전화번호 | I154: 홍보∙대외협력 | J154: 1년 | K154: 홈페이지 | L154: ­
A155: 152 | B155: 한국전력기술 | C155: 혁신성장실 | D155: 산업 ·중소기업 | E155: 에너지 및 자원개발 | F155: 전력산업경쟁력강화및전력수급안정 | G155: 홍보자료 현황 | H155: 영상 및 인쇄 홍보물, 사보 등 | I155: 홍보∙대외협력 | J155: 1년 | K155: 홈페이지 | L155: ­
A156: 153 | B156: 한국전력기술 | C156: 혁신성장실 | D156: 산업 ·중소기업 | E156: 에너지 및 자원개발 | F156: 전력산업경쟁력강화및전력수급안정 | G156: 홍보용품 제작 현황 | H156: 제품명, 단가, 수량, 제작금액, 납품일자, 납품업체(대표자, 소재지 등), 배부부서 및 활용목적 | I156: 홍보∙대외협력 | J156: 1년 | K156: 홈페이지 | L156: ­
A157: 154 | B157: 한국전력기술 | C157: 혁신성장실 | D157: 산업 ·중소기업 | E157: 에너지 및 자원개발 | F157: 전력산업경쟁력강화및전력수급안정 | G157: 광고비 집행현황 | H157: 광고매체명, 기간 및 방법, 집행액 | I157: 홍보∙대외협력 | J157: 1년 | K157: 홈페이지 | L157: ­
A158: 155 | B158: 한국전력기술 | C158: 혁신성장실 | D158: 산업 ·중소기업 | E158: 에너지 및 자원개발 | F158: 전력산업경쟁력강화및전력수급안정 | G158: 국내 전시회 운영 실적 | H158: 국내 전시회 운영 횟수 등 | I158: 홍보∙대외협력 | J158: 1년 | K158: 홈페이지 | L158: 해당
A159: 156 | B159: 한국전력기술 | C159: 혁신성장실 | D159: 산업 ·중소기업 | E159: 에너지 및 자원개발 | F159: 전력산업경쟁력강화및전력수급안정 | G159: 국외 전시회 운영 실적 | H159: 국외 전시회 운영 횟수 등 | I159: 홍보∙대외협력 | J159: 1년 | K159: 홈페이지 | L159: 해당
A160: 157 | B160: 한국전력기술 | C160: 혁신성장실 | D160: 산업 ·중소기업 | E160: 에너지 및 자원개발 | F160: 전력산업경쟁력강화및전력수급안정 | G160: SNS 운영 실적 | H160: 공식 facebook 게시 횟수 등 | I160: 홍보∙대외협력 | J160: 1년 | K160: 홈페이지 | L160: 해당
A161: 158 | B161: 한국전력기술 | C161: 혁신성장실 | D161: 산업 ·중소기업 | E161: 에너지 및 자원개발 | F161: 전력산업경쟁력강화및전력수급안정 | G161: 홈페이지 뉴스레터 현황 | H161: 홈페이지 뉴스레터 수신자 수 등 | I161: 홍보∙대외협력 | J161: 1년 | K161: 홈페이지 | L161: 해당
A162: 159 | B162: 한국전력기술 | C162: 혁신성장실 | D162: 산업 ·중소기업 | E162: 에너지 및 자원개발 | F162: 전력산업경쟁력강화및전력수급안정 | G162: 언론보도 자료 리스트 | H162: 회사 보도자료 목록 등 | I162: 홍보∙대외협력 | J162: 1년 | K162: 홈페이지 | L162: 해당
A163: 160 | B163: 한국전력기술 | C163: 혁신성장실 | D163: 산업 ·중소기업 | E163: 에너지 및 자원개발 | F163: 전력산업경쟁력강화및전력수급안정 | G163: 캘린더 제작 부수 | H163: 회사 달력 제작 수량, 업체 등 | I163: 홍보∙대외협력 | J163: 1년 | K163: 홈페이지 | L163: 해당
A164: 161 | B164: 한국전력기술 | C164: 혁신성장실 | D164: 산업 ·중소기업 | E164: 에너지 및 자원개발 | F164: 전력산업경쟁력강화및전력수급안정 | G164: 광고이미지 제작 현황 | H164: 회사광고 이미지, 제작횟수 등 | I164: 홍보∙대외협력 | J164: 1년 | K164: 홈페이지 | L164: 해당
A165: 162 | B165: 한국전력기술 | C165: 혁신성장실 | D165: 산업 ·중소기업 | E165: 에너지 및 자원개발 | F165: 전력산업경쟁력강화및전력수급안정 | G165: 회사 홈페이지 방문자 현황 | H165: 월별 회사 홈페이지 방문자 수 현황 등 | I165: 홍보∙대외협력 | J165: 1년 | K165: 홈페이지 | L165: 해당
A166: 163 | B166: 한국전력기술 | C166: 혁신성장실 | D166: 산업 ·중소기업 | E166: 에너지 및 자원개발 | F166: 전력산업경쟁력강화및전력수급안정 | G166: 사회적 기업 지원현황 | H166: 지원대상(기업명, 기업소개 등), 지원내용 | I166: 인사∙총무∙회계 | J166: 1년 | K166: 홈페이지 | L166: ­
A167: 164 | B167: 한국전력기술 | C167: 혁신성장실 | D167: 산업 ·중소기업 | E167: 에너지 및 자원개발 | F167: 전력산업경쟁력강화및전력수급안정 | G167: 중소기업 제품 구매실적 | H167: 품목, 구매 수량 및 금액, 전체 물품 구매액 대비 비율 | I167: 계약∙기타 | J167: 1년 | K167: 홈페이지 | L167: ­
A168: 165 | B168: 한국전력기술 | C168: 혁신성장실 | D168: 산업 ·중소기업 | E168: 에너지 및 자원개발 | F168: 전력산업경쟁력강화및전력수급안정 | G168: 장애인 생산품 구매실적 | H168: 품목, 구매 수량 및 금액, 전체 물품 구매액 대비 비율 | I168: 계약∙기타 | J168: 1년 | K168: 홈페이지 | L168: ­
A169: 166 | B169: 한국전력기술 | C169: 혁신성장실 | D169: 산업 ·중소기업 | E169: 에너지 및 자원개발 | F169: 전력산업경쟁력강화및전력수급안정 | G169: 미래인재육성기반 사업 | H169: 장학금 대상 | I169: 기술∙교육∙품질 | J169: 1년 | K169: 홈페이지 | L169: 해당
A170: 167 | B170: 한국전력기술 | C170: 혁신성장실 | D170: 산업 ·중소기업 | E170: 에너지 및 자원개발 | F170: 전력산업경쟁력강화및전력수급안정 | G170: 이전지역 협력강화 | H170: 지자체 봉사활동 행사 참여현황 | I170: 홍보∙대외협력 | J170: 분기 | K170: 홈페이지 | L170: 해당
A171: 168 | B171: 한국전력기술 | C171: 혁신성장실 | D171: 산업 ·중소기업 | E171: 에너지 및 자원개발 | F171: 전력산업경쟁력강화및전력수급안정 | G171: 사회공헌 활동 현황 | H171: 계기(명절, 연말, 국군장병 위문, 기타 등), 지원일자, 지원대상, 지원내역, 지원금액, 재원조달(임직원 모금, 예산 등) | I171: 홍보∙대외협력 | J171: 반기 | K171: 홈페이지 | L171: ­
A172: 169 | B172: 한국전력기술 | C172: 혁신성장실 | D172: 산업 ·중소기업 | E172: 에너지 및 자원개발 | F172: 전력산업경쟁력강화및전력수급안정 | G172: 지역사회 공헌사업 현황 | H172: 사업명, 사업내용, 관련예산, 추진 경과 및 계획 | I172: 홍보∙대외협력 | J172: 반기 | K172: 홈페이지 | L172: ­
A173: 170 | B173: 한국전력기술 | C173: 혁신성장실 | D173: 산업 ·중소기업 | E173: 에너지 및 자원개발 | F173: 전력산업경쟁력강화및전력수급안정 | G173: 임직원 행동강령 및 지침 | H173: 임직원 행동강령 및 지침 내용 | I173: 감사∙윤리 | J173: 1년 | K173: 홈페이지 | L173: ­
A174: 171 | B174: 한국전력기술 | C174: 혁신성장실 | D174: 산업 ·중소기업 | E174: 에너지 및 자원개발 | F174: 전력산업경쟁력강화및전력수급안정 | G174: 청렴계약 및 윤리서약 | H174: 임원 직무청렴계약 및 직원 윤리서약 현황 | I174: 감사∙윤리 | J174: 1년 | K174: 홈페이지 | L174: ­
A175: 172 | B175: 한국전력기술 | C175: 혁신성장실 | D175: 산업 ·중소기업 | E175: 에너지 및 자원개발 | F175: 전력산업경쟁력강화및전력수급안정 | G175: 청렴교육 현황 | H175: 청렴교육 시행 내역(일시, 장소, 교육내용 등), 참석인원, 기관장 및 임원 참석여부 | I175: 감사∙윤리 | J175: 1년 | K175: 홈페이지 | L175: ­
A176: 173 | B176: 한국전력기술 | C176: 혁신성장실 | D176: 산업 ·중소기업 | E176: 에너지 및 자원개발 | F176: 전력산업경쟁력강화및전력수급안정 | G176: 청렴마일리지 운영 현황 | H176: 개요, 운영기간, 지표, 인센티브, 운영결과 | I176: 감사∙윤리 | J176: 1년 | K176: 홈페이지 | L176: ­
A177: 174 | B177: 한국전력기술 | C177: 혁신성장실 | D177: 산업 ·중소기업 | E177: 에너지 및 자원개발 | F177: 전력산업경쟁력강화및전력수급안정 | G177: 성희롱 예방교육 현황 | H177: 성희롱 예방교육 시행 내역(일시, 교육방법, 교육내용 등), 참석인원, 기관장 및 임원 참석여부 | I177: 감사∙윤리 | J177: 1년 | K177: 홈페이지 | L177: ­
A178: 175 | C178: 혁신성장실 | D178: 산업 ·중소기업 | E178: 에너지 및 자원개발 | F178: 전력산업경쟁력강화및전력수급안정 | G178: 인권경영헌장 | H178: 한국전력기술 인권경영 헌장 | I178: 감사∙윤리 | J178: 1년 | K178: 홈페이지
A179: 176 | B179: 한국전력기술 | C179: 혁신성장실 | D179: 산업 ·중소기업 | E179: 에너지 및 자원개발 | F179: 전력산업경쟁력강화및전력수급안정 | G179: 상품권 구입 및 배부 현황 | H179: 구입일자, 종류, 구입금액, 구입목적, 배부처, 배부금액 | I179: 계약∙기타 | J179: 매월 | K179: 홈페이지
A180: 177 | B180: 한국전력기술 | C180: 법무총괄반 | D180: 산업 ·중소기업 | E180: 에너지 및 자원개발 | F180: 전력산업경쟁력강화및전력수급안정 | G180: 진행중인 민사소송현황 | H180: 구분(행정, 민사), 사건명 | I180: 법무∙노무 | J180: 1년 | K180: 홈페이지 | L180: ­ | M180: 지원업무
A181: 178 | B181: 한국전력기술 | C181: 법무총괄반 | D181: 산업 ·중소기업 | E181: 에너지 및 자원개발 | F181: 전력산업경쟁력강화및전력수급안정 | G181: 종결된 소송현황 | H181: 구분(행정, 민사), 사건명 | I181: 법무∙노무 | J181: 1년 | K181: 홈페이지 | L181: 해당 | M181: 지원업무
A182: 179 | B182: 한국전력기술 | C182: 법무총괄반 | D182: 산업 ·중소기업 | E182: 에너지 및 자원개발 | F182: 전력산업경쟁력강화및전력수급안정 | G182: 진행중인 지적재산권 분쟁 현황 | H182: 구분(분쟁,소송,민원), 사건명, 처리결과 등 | I182: 법무∙노무 | J182: 1년 | K182: 홈페이지 | L182: 해당 | M182: 지원업무
A183: 180 | B183: 한국전력기술 | C183: 법무총괄반 | D183: 산업 ·중소기업 | E183: 에너지 및 자원개발 | F183: 전력산업경쟁력강화및전력수급안정 | G183: 진행중인 행정소송 현황 | H183: 구분(피소,제소), 사건명, 처리결과 등 | I183: 법무∙노무 | J183: 1년 | K183: 홈페이지 | L183: 해당 | M183: 지원업무
A184: 181 | B184: 한국전력기술 | C184: 법무총괄반 | D184: 산업 ·중소기업 | E184: 에너지 및 자원개발 | F184: 전력산업경쟁력강화및전력수급안정 | G184: 진행중인 형사소송 현황 | H184: 구분(고발,피고발), 사건명, 처리결과 등 | I184: 법무∙노무 | J184: 1년 | K184: 홈페이지 | L184: 해당 | M184: 지원업무
A185: 182 | B185: 한국전력기술 | C185: 법무총괄반 | D185: 산업 ·중소기업 | E185: 에너지 및 자원개발 | F185: 전력산업경쟁력강화및전력수급안정 | G185: 사내변호사 인력현황 | H185: 구분(국내, 외국), 인원수 | I185: 법무∙노무 | J185: 1년 | K185: 홈페이지 | L185: 해당 | M185: 지원업무
A186: 183 | B186: 한국전력기술 | C186: 법무총괄반 | D186: 산업 ·중소기업 | E186: 에너지 및 자원개발 | F186: 전력산업경쟁력강화및전력수급안정 | G186: 사내변호사 직무교육 현황 | H186: 교육명, 교육일정, 참여인원 | I186: 법무∙노무 | J186: 1년 | K186: 홈페이지 | L186: 해당 | M186: 지원업무
A187: 184 | B187: 한국전력기술 | C187: 법무총괄반 | D187: 산업 ·중소기업 | E187: 에너지 및 자원개발 | F187: 전력산업경쟁력강화및전력수급안정 | G187: 법무역량 교육 현황 | H187: 구분(사내, 외부), 교육명, 참여인원 | I187: 법무∙노무 | J187: 1년 | K187: 홈페이지 | L187: 해당 | M187: 지원업무
A188: 185 | B188: 한국전력기술 | C188: 법무총괄반 | D188: 산업 ·중소기업 | E188: 에너지 및 자원개발 | F188: 전력산업경쟁력강화및전력수급안정 | G188: 외부 변호사 운영현황 | H188: 법률고문명(법무법인 및 개인), 위촉기간 | I188: 법무∙노무 | J188: 1년 | K188: 홈페이지 | L188: ­
A189: 186 | B189: 한국전력기술 | C189: 법무총괄반 | D189: 산업 ·중소기업 | E189: 에너지 및 자원개발 | F189: 전력산업경쟁력강화및전력수급안정 | G189: 기관 관련 주요 법령 - 민사/상사 등 경영일반 관련 주요법령 | H189: 법, 시행령, 시행규칙 등 | I189: 법무∙노무 | J189: 1년 | K189: 홈페이지 | L189: - | M189: 지원업무
A190: 187 | B190: 한국전력기술 | C190: (원자력)원전안전센터 | D190: 산업 ·중소기업 | E190: 에너지 및 자원개발 | F190: 전력산업경쟁력강화및전력수급안정 | G190: 원전 안전관련기기 내진검증현황 | H190: 내진검증대상 기기목록, 검증방법, 검증문서현황 | I190: 기술∙교육∙품질 | J190: 분기 | K190: 홈페이지 | L190: 해당 | M190: 고유업무
A191: 188 | B191: 한국전력기술 | C191: (원자력)원전안전센터 | D191: 산업 ·중소기업 | E191: 에너지 및 자원개발 | F191: 전력산업경쟁력강화및전력수급안정 | G191: 원전 안전관련기기 내환경검증현황 | H191: 내환경검증대상 기기목록, 검증방법, 검증문서현황 | I191: 기술∙교육∙품질 | J191: 분기 | K191: 홈페이지 | L191: 해당 | M191: 고유업무
A192: 189 | B192: 한국전력기술 | C192: (원자력)원자력사업관리실 | D192: 산업 ·중소기업 | E192: 에너지 및 자원개발 | F192: 전력산업경쟁력강화및전력수급안정 | G192: 국내외 원자력 현장파견인력 현황(A/E) | H192: 파견지, 수행사업, 파견인원 등 | I192: 인사∙총무∙회계 | J192: 반기 | K192: 홈페이지 | L192: 해당 | M192: 고유업무
A193: 190 | B193: 한국전력기술 | C193: (원자력)원자력사업관리실 | D193: 산업 ·중소기업 | E193: 에너지 및 자원개발 | F193: 전력산업경쟁력강화및전력수급안정 | G193: 본부별 주요 계획 - 원자력본부 주요 계획 | H193: 본부명, 사업개요, 주요내용, 주요 추진계획 | I193: 기획∙전략 | J193: 1년 | K193: 홈페이지 | L193: ­ | M193: 지원업무
A194: 191 | B194: 한국전력기술 | C194: (원자력)원자력사업관리실 | D194: 산업 ·중소기업 | E194: 에너지 및 자원개발 | F194: 전력산업경쟁력강화및전력수급안정 | G194: 기관 관련 주요 법령 - 원자력 관련 주요법령 | H194: 법, 시행령, 시행규칙 등 | I194: 법무∙노무 | J194: 1년 | K194: 홈페이지 | L194: ­ | M194: 지원업무
A195: 192 | B195: 한국전력기술 | C195: (원자력)원자력사업관리실 | D195: 산업 ·중소기업 | E195: 에너지 및 자원개발 | F195: 전력산업경쟁력강화및전력수급안정 | G195: 원자력발전 노형별 이해 | H195: 노형별 조감도, 절개도, 차이점 등 | I195: 기술∙교육∙품질 | J195: 1년 | K195: 홈페이지 | L195: 해당 | M195: 고유업무
A196: 193 | B196: 한국전력기술 | C196: (원자력)원자력사업처 | D196: 산업 ·중소기업 | E196: 에너지 및 자원개발 | F196: 전력산업경쟁력강화및전력수급안정 | G196: 원자력관련 학술단체 회원등록 현황 | H196: 원자력 학술단체 현황, 우리회사가 회원사로 참여중인 학술단체 목록, 참여 학술활동 현황 | I196: 기술∙교육∙품질 | J196: 반기 | K196: 홈페이지 | L196: 해당 | M196: 지원업무
A197: 194 | B197: 한국전력기술 | C197: (원자력)원자력사업처 | D197: 산업 ·중소기업 | E197: 에너지 및 자원개발 | F197: 전력산업경쟁력강화및전력수급안정 | G197: 원전신흥도입국 지원현황 | H197: 원전신흥도입국 현황, 지원업무(행사명 등) 사례 | I197: 홍보∙대외협력 | J197: 반기 | K197: 홈페이지 | L197: 해당 | M197: 고유업무
A198: 195 | B198: 한국전력기술 | C198: (원자력)원자력사업처 | D198: 산업 ·중소기업 | E198: 에너지 및 자원개발 | F198: 전력산업경쟁력강화및전력수급안정 | G198: 세계 원자력산업 동향 | H198: 국가별 소식, 업체별 소식, 국제기구 소식, 신규원전 발주전망, 기술개발 현황 | I198: 홍보∙대외협력 | J198: 1년 | K198: 홈페이지 | L198: 해당 | M198: 고유업무
A199: 196 | B199: 한국전력기술 | C199: (원자력)원자력사업처 | D199: 산업 ·중소기업 | E199: 에너지 및 자원개발 | F199: 전력산업경쟁력강화및전력수급안정 | G199: 원자력본부 소개자료(국외용) | H199: 조직도,인력현황, 주요 사업개요 | I199: 홍보∙대외협력 | J199: 1년 | K199: 홈페이지 | L199: 해당 | M199: 고유업무
A200: 197 | B200: 한국전력기술 | C200: (원자력)원자력사업처 | D200: 산업 ·중소기업 | E200: 에너지 및 자원개발 | F200: 전력산업경쟁력강화및전력수급안정 | G200: 지사 및 연락사무소 현황 | H200: 위치, 지사장/소장 성명 및 연락처 | I200: 홍보∙대외협력 | J200: 1년 | K200: 홈페이지 | L200: 해당 | M200: 고유업무
... 20 more rows

Sheet 사전정보공표 항목(명칭변경전) (hidden)
A1: ■ 사전정보공표 항목 및 담당부서
A2: 2019.4.3. 기준
A3: 연번 | B3: 기관명 | C3: 신규 담당 부서 | D3: BRM 1레벨 | E3: BRM 2레벨 | F3: BRM 3레벨 | G3: 공표목록 | H3: 공표항목 | I3: 항목분류 | J3: 공표주기 | K3: 공표방법 | L3: 자율공시 해당여부 | M3: 유형
A4: 1 | B4: 한국전력기술 | C4: 감사실 | D4: 산업 ·중소기업 | E4: 에너지 및 자원개발 | F4: 전력산업경쟁력강화및전력수급안정 | G4: 감사전문성 향상 추진 현황 | H4: 감사인명, 감사전문 교육이수시간 | I4: 감사∙윤리 | J4: 1년 | K4: 홈페이지 | L4: 해당
A5: 2 | B5: 한국전력기술 | C5: 감사실 | D5: 산업 ·중소기업 | E5: 에너지 및 자원개발 | F5: 전력산업경쟁력강화및전력수급안정 | G5: 옴브즈만 운영 현황 | H5: 개최일시, 회의내용, 회의결과, 건의사항에 대한 조치결과 | I5: 감사∙윤리 | J5: 1년 | K5: 홈페이지 | L5: ­
A6: 3 | B6: 한국전력기술 | C6: 감사실 | D6: 산업 ·중소기업 | E6: 에너지 및 자원개발 | F6: 전력산업경쟁력강화및전력수급안정 | G6: 감사계획 | H6: 유형(종합/특별 등), 대상(본부,부서 등), 감사일정, 감사반편성, 중점 감사사항 | I6: 감사∙윤리 | J6: 1년 | K6: 홈페이지 | L6: ­
A7: 4 | B7: 한국전력기술 | C7: 감사실 | D7: 산업 ·중소기업 | E7: 에너지 및 자원개발 | F7: 전력산업경쟁력강화및전력수급안정 | G7: 일상감사 현황 | H7: 일상감사 대상, 처리절차, 관련 법규 | I7: 감사∙윤리 | J7: 1년 | K7: 홈페이지 | L7: ­
A8: 5 | B8: 한국전력기술 | C8: 감사실 | D8: 산업 ·중소기업 | E8: 에너지 및 자원개발 | F8: 전력산업경쟁력강화및전력수급안정 | G8: 공직기강 감찰결과 | H8: 시기별 감찰개요, 감찰결과(대상, 내용, 위법사항 등), 조치결과 | I8: 감사∙윤리 | J8: 1년 | K8: 홈페이지 | L8: ­
A9: 6 | B9: 한국전력기술 | C9: 감사실 | D9: 산업 ·중소기업 | E9: 에너지 및 자원개발 | F9: 전력산업경쟁력강화및전력수급안정 | G9: 부패행위 신고 및 처리결과 | H9: 신고목록 및 내용, 조사결과(내용, 위법사항 등), 조치결과 | I9: 감사∙윤리 | J9: 1년 | K9: 홈페이지 | L9: ­
A10: 7 | B10: 한국전력기술 | C10: 감사실 | D10: 산업 ·중소기업 | E10: 에너지 및 자원개발 | F10: 전력산업경쟁력강화및전력수급안정 | G10: 범죄유형별 형사처분 임직원 현황 | H10: 범죄유형, 범죄내용, 기소여부, 재판결과, 징계내역 | I10: 감사∙윤리 | J10: 1년 | K10: 홈페이지 | L10: ­
A11: 8 | B11: 한국전력기술 | C11: 감사실 | D11: 산업 ·중소기업 | E11: 에너지 및 자원개발 | F11: 전력산업경쟁력강화및전력수급안정 | G11: 고충·다수 민원관련 조사 및 처리결과 | H11: 유형(고충, 다수), 민원목록 및 내용, 조사결과(내용, 위법사항 등), 민원처리 결과, 조치결과 | I11: 감사∙윤리 | J11: 1년 | K11: 홈페이지 | L11: ­
A12: 9 | B12: 한국전력기술 | C12: 감사실 | D12: 산업 ·중소기업 | E12: 에너지 및 자원개발 | F12: 전력산업경쟁력강화및전력수급안정 | G12: 반부패 경쟁력 추진 현황 | H12: 반부패 경쟁력 평가 추진계획, 반부패 추진 시책 | I12: 감사∙윤리 | J12: 1년 | K12: 홈페이지 | L12: ­
A13: 10 | B13: 한국전력기술 | C13: 감사실 | D13: 산업 ·중소기업 | E13: 에너지 및 자원개발 | F13: 전력산업경쟁력강화및전력수급안정 | G13: 반부패 경쟁력평가 결과 | H13: 조사대상, 기간, 평가부문(주요 평가내용), 평가결과(등급) | I13: 감사∙윤리 | J13: 1년 | K13: 홈페이지 | L13: ­
A14: 11 | B14: 한국전력기술 | C14: 감사실 | D14: 산업 ·중소기업 | E14: 에너지 및 자원개발 | F14: 전력산업경쟁력강화및전력수급안정 | G14: 종합청렴도 평가 | H14: 권익위 종합청렴도 평가결과 | I14: 감사∙윤리 | J14: 1년 | K14: 홈페이지 | L14: ­
A15: 12 | B15: 한국전력기술 | C15: 감사실 | D15: 산업 ·중소기업 | E15: 에너지 및 자원개발 | F15: 전력산업경쟁력강화및전력수급안정 | G15: 청렴도 조사 결과 | H15: 조사대상, 기간, 설문대상, 방법, 측정업무, 표본수, 측정내용, 평가결과(점수, 평균, 등급) | I15: 감사∙윤리 | J15: 1년 | K15: 홈페이지 | L15: ­
A16: 13 | B16: 한국전력기술 | C16: 감사실 | D16: 산업 ·중소기업 | E16: 에너지 및 자원개발 | F16: 전력산업경쟁력강화및전력수급안정 | G16: 재산등록 | H16: 재산등록의무자 기준 및 연 재산등록자 인원현황 | I16: 감사∙윤리 | J16: 1년 | K16: 홈페이지 | L16: ­
A17: 14 | B17: 한국전력기술 | C17: 감사실 | D17: 산업 ·중소기업 | E17: 에너지 및 자원개발 | F17: 전력산업경쟁력강화및전력수급안정 | G17: 민원처리 절차 | H17: 청원, 진정민원 접수 및 처리안내 | I17: 감사∙윤리 | J17: 1년 | K17: 홈페이지 | L17: ­
A18: 15 | B18: 한국전력기술 | C18: 미래전략연구소 | D18: 산업 ·중소기업 | E18: 에너지 및 자원개발 | F18: 전력산업경쟁력강화및전력수급안정 | G18: 단위 정부과제 목록 | H18: 단위 정부과제명, 분류체계, 단위과제 설명, 부서명, 보존기간, 보존기간 책정사유 | I18: 기술∙교육∙품질 | J18: 반기 | K18: 홈페이지 | L18: ­
A19: 16 | B19: 한국전력기술 | C19: 미래전략연구소 | D19: 산업 ·중소기업 | E19: 에너지 및 자원개발 | F19: 전력산업경쟁력강화및전력수급안정 | G19: 국내학술활동참가현황 | H19: 학술명, 학술기간, 학술기관 | I19: 기술∙교육∙품질 | J19: 반기 | K19: 홈페이지 | L19: 해당
A20: 17 | B20: 한국전력기술 | C20: 미래전략연구소 | D20: 산업 ·중소기업 | E20: 에너지 및 자원개발 | F20: 전력산업경쟁력강화및전력수급안정 | G20: 주요 연구개발과제 완료 현황 | H20: 과제명, 과제내용, 수행기간, 총연구비, 연구책임자 | I20: 기술∙교육∙품질 | J20: 1년 | K20: 홈페이지 | L20: ­
A21: 18 | B21: 한국전력기술 | C21: 미래전략연구소 | D21: 산업 ·중소기업 | E21: 에너지 및 자원개발 | F21: 전력산업경쟁력강화및전력수급안정 | G21: 국비보조 및 정부보조사업 현황 | H21: 사업명, 사업내용, 항목별 예산 내역 | I21: 기술∙교육∙품질 | J21: 1년 | K21: 홈페이지 | L21: ­
A22: 19 | B22: 한국전력기술 | C22: 미래전략연구소 | D22: 산업 ·중소기업 | E22: 에너지 및 자원개발 | F22: 전력산업경쟁력강화및전력수급안정 | G22: 논문발표 현황 | H22: 최근 3년간 국내외 논문발표 현황 총괄표(연도별, 부서별, 발표건수) | I22: 기술∙교육∙품질 | J22: 1년 | K22: 홈페이지 | L22: 해당
A23: 20 | B23: 한국전력기술 | C23: 미래전략연구소 | D23: 산업 ·중소기업 | E23: 에너지 및 자원개발 | F23: 전력산업경쟁력강화및전력수급안정 | G23: 스페셜리스트 운영 현황 | H23: 스페셜리스트 전문분야 및 직무내역 | I23: 인사∙총무∙회계 | J23: 1년 | K23: 홈페이지 | L23: 해당
A24: 21 | B24: 한국전력기술 | C24: 미래전략연구소 | D24: 산업 ·중소기업 | E24: 에너지 및 자원개발 | F24: 전력산업경쟁력강화및전력수급안정 | G24: 산학협력 현황 | H24: 산학연관 MOU 체결 현황 | I24: 홍보∙대외협력 | J24: 반기 | K24: 홈페이지 | L24: ­
A25: 22 | B25: 한국전력기술 | C25: 미래전략연구소 | D25: 산업 ·중소기업 | E25: 에너지 및 자원개발 | F25: 전력산업경쟁력강화및전력수급안정 | G25: 기록물 생산 현황 및 폐기 현황 | H25: 생산현황(생산연도별, 보존기간별(영구, 준영구, 30년, 10년, 5년, 3년, 1년), 문서 생산건수), 폐기현황(생산연도, 보존기간, 문서 폐기건수) | I25: 인사∙총무∙회계 | J25: 1년 | K25: 홈페이지 | L25: ­
A26: 23 | B26: 한국전력기술 | C26: 미래전략연구소 | D26: 산업 ·중소기업 | E26: 에너지 및 자원개발 | F26: 전력산업경쟁력강화및전력수급안정 | G26: 시청각기록물 보유현황 | H26: 생산부서, 생산연도, 보존기간, 기록물제목 | I26: 정보화 | J26: 1년 | K26: 홈페이지 | L26: ­
A27: 24 | B27: 한국전력기술 | C27: 미래전략연구소 | D27: 산업 ·중소기업 | E27: 에너지 및 자원개발 | F27: 전력산업경쟁력강화및전력수급안정 | G27: 정기간행물 등록현황 | H27: 명칭, 발행인, 등록일자, 발행주기 | I27: 정보화 | J27: 1년 | K27: 홈페이지 | L27: ­
A28: 25 | B28: 한국전력기술 | C28: 미래전략연구소 | D28: 산업 ·중소기업 | E28: 에너지 및 자원개발 | F28: 전력산업경쟁력강화및전력수급안정 | G28: 기술정보실 보유도서 목록 현황 | H28: 전문도서명, 정기간행물명, 발행처, 저자, 발행년도 | I28: 정보화 | J28: 반기 | K28: 홈페이지 | L28: 해당
A29: 26 | B29: 한국전력기술 | C29: 미래전략연구소 | D29: 산업 ·중소기업 | E29: 에너지 및 자원개발 | F29: 전력산업경쟁력강화및전력수급안정 | G29: 기술정보실 DB 검색 서비스 현황 | H29: 가입중인 외부 DB 명, 계약기관, DB소개 | I29: 정보화 | J29: 1년 | K29: 홈페이지 | L29: 해당
A30: 27 | B30: 한국전력기술 | C30: 미래전략연구소 | D30: 산업 ·중소기업 | E30: 에너지 및 자원개발 | F30: 전력산업경쟁력강화및전력수급안정 | G30: 전문도서 보유목록 현황 | H30: 전문도서명, 분야, 발행처, 저자, 출판년도 | I30: 정보화 | J30: 1년 | K30: 홈페이지 | L30: 해당
A31: 28 | B31: 한국전력기술 | C31: 미래전략연구소 | D31: 산업 ·중소기업 | E31: 에너지 및 자원개발 | F31: 전력산업경쟁력강화및전력수급안정 | G31: 열린도서관 교양 도서 현황 | H31: 교양서명, 분야, 발행처, 저자, 출판년도 | I31: 정보화 | J31: 1년 | K31: 홈페이지 | L31: 해당
A32: 29 | B32: 한국전력기술 | C32: 미래전략연구소 | D32: 산업 ·중소기업 | E32: 에너지 및 자원개발 | F32: 전력산업경쟁력강화및전력수급안정 | G32: CODE & STANDARD 운영현황 | H32: CODE & STANDARD명, 분야, 발행처, 출판년도 | I32: 정보화 | J32: 1년 | K32: 홈페이지 | L32: 해당
A33: 30 | B33: 한국전력기술 | C33: 미래전략연구소 | D33: 산업 ·중소기업 | E33: 에너지 및 자원개발 | F33: 전력산업경쟁력강화및전력수급안정 | G33: 기술정보실 국내 DB 구독서비스 현황 | H33: 가입중인 국내 DB명, 계약기관, DB소개 | I33: 정보화 | J33: 1년 | K33: 홈페이지 | L33: 해당
A34: 31 | B34: 한국전력기술 | C34: 미래전략연구소 | D34: 산업 ·중소기업 | E34: 에너지 및 자원개발 | F34: 전력산업경쟁력강화및전력수급안정 | G34: 전자저널 구독현황 | H34: 구독중인 전자저널명, 계약기관, 전자저널 소개 | I34: 정보화 | J34: 1년 | K34: 홈페이지 | L34: 해당
A35: 32 | B35: 한국전력기술 | C35: 미래전략연구소 | D35: 산업 ·중소기업 | E35: 에너지 및 자원개발 | F35: 전력산업경쟁력강화및전력수급안정 | G35: 기술정보실 해외 DB 구독 서비스 현황 | H35: 가입중인 해외 DB 명, 계약기관, DB소개 | I35: 정보화 | J35: 1년 | K35: 홈페이지 | L35: 해당
A36: 33 | B36: 한국전력기술 | C36: 미래전략연구소 | D36: 산업 ·중소기업 | E36: 에너지 및 자원개발 | F36: 전력산업경쟁력강화및전력수급안정 | G36: 비공개기록물 공개 재분류 목록 | H36: 생산기관, 생산연도, 보존기간, 기록물철명, 기록물건명, 재분류 의견 | I36: 정보화 | J36: 1년 | K36: 홈페이지 | L36: ­
A37: 34 | B37: 한국전력기술 | C37: 미래전략연구소 | D37: 산업 ·중소기업 | E37: 에너지 및 자원개발 | F37: 전력산업경쟁력강화및전력수급안정 | G37: 빅데이터활용 현황 및 계획 | H37: 빅데이터활용 현황 및 계획(정책, 전략, 홍보, 교육 등) | I37: 정보화 | J37: 반기 | K37: 홈페이지 | L37: ­
A38: 35 | B38: 한국전력기술 | C38: 미래전략연구소 | D38: 산업 ·중소기업 | E38: 에너지 및 자원개발 | F38: 전력산업경쟁력강화및전력수급안정 | G38: 정보시스템 운영 현황 | H38: 시스템명, 시스템개요 | I38: 정보화 | J38: 1년 | K38: 홈페이지 | L38: 해당 | M38: 지원업무
A39: 36 | B39: 한국전력기술 | C39: 품질안전환경처 | D39: 산업 ·중소기업 | E39: 에너지 및 자원개발 | F39: 전력산업경쟁력강화및전력수급안정 | G39: 원자력 안전점검의 날 이행실적(A/E) | H39: 안전세미나 주제, 발표자, 참석인원, 사진 | I39: 기술∙교육∙품질 | J39: 1년 | K39: 홈페이지 | L39: 해당
A40: 37 | B40: 한국전력기술 | C40: 품질안전환경처 | D40: 산업 ·중소기업 | E40: 에너지 및 자원개발 | F40: 전력산업경쟁력강화및전력수급안정 | G40: 원자력 안전점검의 날 이행실적(NSSS) | H40: 안전세미나 주제, 발표자, 참석인원, 사진 | I40: 기술∙교육∙품질 | J40: 1년 | K40: 홈페이지 | L40: 해당
A41: 38 | B41: 한국전력기술 | C41: 품질안전환경처 | D41: 산업 ·중소기업 | E41: 에너지 및 자원개발 | F41: 전력산업경쟁력강화및전력수급안정 | G41: 품질관련 자격인증 보유현황 | H41: 인증서, 분야, 최초취득일, 유효기간, 갱신주기 | I41: 기술∙교육∙품질 | J41: 1년 | K41: 홈페이지 | L41: 해당
A42: 39 | B42: 한국전력기술 | C42: 품질안전환경처 | D42: 산업 ·중소기업 | E42: 에너지 및 자원개발 | F42: 전력산업경쟁력강화및전력수급안정 | G42: 품질경영시스템 체계 | H42: 품질보증/품질경영 문서화 체계도 등 | I42: 기술∙교육∙품질 | J42: 1년 | K42: 홈페이지 | L42: 해당
A43: 40 | B43: 한국전력기술 | C43: 품질안전환경처 | D43: 산업 ·중소기업 | E43: 에너지 및 자원개발 | F43: 전력산업경쟁력강화및전력수급안정 | G43: 안전환경경영시스템 체계 | H43: 안전, 보건, 환경 문서화 체계도 등 | I43: 기술∙교육∙품질 | J43: 1년 | K43: 홈페이지 | L43: 해당
A44: 41 | B44: 한국전력기술 | C44: 품질안전환경처 | D44: 산업 ·중소기업 | E44: 에너지 및 자원개발 | F44: 전력산업경쟁력강화및전력수급안정 | G44: 안전보건환경 관련 자격인증 보유현황 | H44: 인증서, 분야, 최초취득일, 유효기간, 갱신주기 | I44: 기술∙교육∙품질 | J44: 1년 | K44: 홈페이지 | L44: 해당
A45: 42 | B45: 한국전력기술 | C45: 품질안전환경처 | D45: 산업 ·중소기업 | E45: 에너지 및 자원개발 | F45: 전력산업경쟁력강화및전력수급안정 | G45: 하도급업체 품질감사현황 협력업체 품질감사현황 | H45: 감사 수행 건수, 감사 수검 업체 | I45: 기술∙교육∙품질 | J45: 1년 | K45: 홈페이지 | L45: 해당
A46: 43 | B46: 한국전력기술 | C46: 품질안전환경처 | D46: 산업 ·중소기업 | E46: 에너지 및 자원개발 | F46: 전력산업경쟁력강화및전력수급안정 | G46: 기관 관련 주요 법령 - 품질/안전/환경 관련 주요법령 | H46: 법, 시행령, 시행규칙 등 | I46: 법무∙노무 | J46: 1년 | K46: 홈페이지 | L46: ­
A47: 44 | B47: 한국전력기술 | C47: 인재개발교육원 | D47: 산업 ·중소기업 | E47: 에너지 및 자원개발 | F47: 전력산업경쟁력강화및전력수급안정 | G47: 이공계 대학생 대상 Power Engineering School Camp 실시 | H47: 교육일정, 교육과목, 대상인원, 참여학교 | I47: 기술∙교육∙품질 | J47: 반기 | K47: 홈페이지 | L47: 해당
A48: 45 | B48: 한국전력기술 | C48: 인재개발교육원 | D48: 산업 ·중소기업 | E48: 에너지 및 자원개발 | F48: 전력산업경쟁력강화및전력수급안정 | G48: 전력그룹사 대상 발전소 설계기술 수탁교육 실시 | H48: 교육일정, 교육과목, 대상인원, 회사 | I48: 기술∙교육∙품질 | J48: 반기 | K48: 홈페이지 | L48: 해당
A49: 46 | B49: 한국전력기술 | C49: 인재개발교육원 | D49: 산업 ·중소기업 | E49: 에너지 및 자원개발 | F49: 전력산업경쟁력강화및전력수급안정 | G49: 협력 중소기업 대상 맞춤형 엔지니어링 기술교육 실시 | H49: 교육일정, 교육과목, 대상인원, 참여회사 | I49: 기술∙교육∙품질 | J49: 반기 | K49: 홈페이지 | L49: 해당
A50: 47 | B50: 한국전력기술 | C50: 인재개발교육원 | D50: 산업 ·중소기업 | E50: 에너지 및 자원개발 | F50: 전력산업경쟁력강화및전력수급안정 | G50: 기술전문교육 기본과정 실시 | H50: 교육일정, 교육대상 | I50: 기술∙교육∙품질 | J50: 1년 | K50: 홈페이지 | L50: 해당
A51: 48 | B51: 한국전력기술 | C51: 인재개발교육원 | D51: 산업 ·중소기업 | E51: 에너지 및 자원개발 | F51: 전력산업경쟁력강화및전력수급안정 | G51: 기술전문교육 성숙과정 실시 | H51: 교육일정, 교육대상 | I51: 기술∙교육∙품질 | J51: 1년 | K51: 홈페이지 | L51: 해당
A52: 49 | B52: 한국전력기술 | C52: 인재개발교육원 | D52: 산업 ·중소기업 | E52: 에너지 및 자원개발 | F52: 전력산업경쟁력강화및전력수급안정 | G52: 기술전문교육 고도과정 실시 | H52: 교육일정, 교육대상 | I52: 기술∙교육∙품질 | J52: 1년 | K52: 홈페이지 | L52: 해당
A53: 50 | B53: 한국전력기술 | C53: 인재개발교육원 | D53: 산업 ·중소기업 | E53: 에너지 및 자원개발 | F53: 전력산업경쟁력강화및전력수급안정 | G53: 신입사원 직무입문교육 실시 | H53: 교육일정, 교육대상 | I53: 기술∙교육∙품질 | J53: 1년 | K53: 홈페이지 | L53: 해당
A54: 51 | B54: 한국전력기술 | C54: 인재개발교육원 | D54: 산업 ·중소기업 | E54: 에너지 및 자원개발 | F54: 전력산업경쟁력강화및전력수급안정 | G54: 경력사원 직무입문교육 실시 | H54: 교육일정, 교육대상 | I54: 기술∙교육∙품질 | J54: 1년 | K54: 홈페이지 | L54: 해당
A55: 52 | B55: 한국전력기술 | C55: 기획처 | D55: 산업 ·중소기업 | E55: 에너지 및 자원개발 | F55: 전력산업경쟁력강화및전력수급안정 | G55: 정보공개 청구 및 처리현황 | H55: 청구현황(방법별, 공개여부 결정기간별, 기타청구처리 건수), 처리현황(전부공개, 부분공개, 비공개, 취하 등 건수) | I55: 기획∙전략 | J55: 반기 | K55: 홈페이지 | L55: ­
A56: 53 | B56: 한국전력기술 | C56: 기획처 | D56: 산업 ·중소기업 | E56: 에너지 및 자원개발 | F56: 전력산업경쟁력강화및전력수급안정 | G56: 공공데이터 개방사업 현황 | H56: 사업명, 사업목적, 사업내용, 추진현황, 관련예산, 담당부서 | I56: 기획∙전략 | J56: 반기 | K56: 홈페이지 | L56: ­
A57: 54 | B57: 한국전력기술 | C57: 기획처 | D57: 산업 ·중소기업 | E57: 에너지 및 자원개발 | F57: 전력산업경쟁력강화및전력수급안정 | G57: 공공데이터 개방목록 | H57: 공공데이터 보유목록, 책임관, 실무담당자, 전화번호 | I57: 기획∙전략 | J57: 반기 | K57: 홈페이지 | L57: ­
A58: 55 | B58: 한국전력기술 | C58: 기획처 | D58: 산업 ·중소기업 | E58: 에너지 및 자원개발 | F58: 전력산업경쟁력강화및전력수급안정 | G58: 회사 비전 및 경영전략(삭제) 회사 미션 및 비전 | H58: 회사 비전 및 경영전략(삭제) 회사 미션 및 비전 | I58: 기획∙전략 | J58: 1년 | K58: 홈페이지 | L58: 해당
A59: 56 | B59: 한국전력기술 | C59: 기획처 | D59: 산업 ·중소기업 | E59: 에너지 및 자원개발 | F59: 전력산업경쟁력강화및전력수급안정 | G59: 본부별 주요 계획 - 경영관리본부 주요 계획 | H59: 본부명, 사업개요, 주요내용, 주요 추진계획 | I59: 기획∙전략 | J59: 1년 | K59: 홈페이지 | L59: ­
A60: 57 | B60: 한국전력기술 | C60: 기획처 | D60: 산업 ·중소기업 | E60: 에너지 및 자원개발 | F60: 전력산업경쟁력강화및전력수급안정 | G60: 중장기 전략 및 경영목표(삭제) 중장기 경영전략 | H60: 중장기 전략 및 경영목표(삭제) 중장기 경영전략 | I60: 기획∙전략 | J60: 1년 | K60: 홈페이지 | L60: ­
A61: 58 | B61: 한국전력기술 | C61: 기획처 | D61: 산업 ·중소기업 | E61: 에너지 및 자원개발 | F61: 전력산업경쟁력강화및전력수급안정 | G61: 정부 경영실적 평가 결과 | H61: 기관평가(평가등급, 전년도 평가등급 및 평가등급 변경 사유), 기관장 평가등급(평가등급, 전년도 평가등급 및 평가등급 변경사유), 감사 평가등급(평가등급, 전년도 평가등급 및 평가등급 변경사유) | I61: 기획∙전략 | J61: 1년 | K61: 홈페이지 | L61: ­
A62: 59 | B62: 한국전력기술 | C62: 기획처 | D62: 산업 ·중소기업 | E62: 에너지 및 자원개발 | F62: 전력산업경쟁력강화및전력수급안정 | G62: 각종 위원회 구성 및 운영 | H62: 위원회명, 위원회 구성(위원수 등), 설치목적, 설치근거 | I62: 기획∙전략 | J62: 1년 | K62: 홈페이지 | L62: ­
A63: 60 | B63: 한국전력기술 | C63: 기획처 | D63: 산업 ·중소기업 | E63: 에너지 및 자원개발 | F63: 전력산업경쟁력강화및전력수급안정 | G63: 각종 위원회 심의결과 | H63: 위원회명, 회의개최 일자, 참석 위원, 심의안건, 심의결과 | I63: 기획∙전략 | J63: 1년 | K63: 홈페이지 | L63: ­
A64: 61 | B64: 한국전력기술 | C64: 기획처 | D64: 산업 ·중소기업 | E64: 에너지 및 자원개발 | F64: 전력산업경쟁력강화및전력수급안정 | G64: 기관 업무보고 자료 | H64: 일반현황, 주요 업무계획 | I64: 기획∙전략 | J64: 1년 | K64: 홈페이지 | L64: ­
A65: 62 | B65: 한국전력기술 | C65: 기획처 | D65: 산업 ·중소기업 | E65: 에너지 및 자원개발 | F65: 전력산업경쟁력강화및전력수급안정 | G65: 소속기관 경영실적평가 결과 | H65: 소속기관명, 평가기준(평가지표, 배점, 평가방법), 평가결과, 지적사항, 조치계획 및 조치결과 | I65: 기획∙전략 | J65: 1년 | K65: 홈페이지 | L65: ­
A66: 63 | B66: 한국전력기술 | C66: 기획처 | D66: 산업 ·중소기업 | E66: 에너지 및 자원개발 | F66: 전력산업경쟁력강화및전력수급안정 | G66: 사규 현황 | H66: 명칭, 제정일자, 최종공포 일자, 소관부서장, 연락처, 규정내용 | I66: 기획∙전략 | J66: 1년 | K66: 홈페이지 | L66: ­
A67: 64 | B67: 한국전력기술 | C67: 기획처 | D67: 산업 ·중소기업 | E67: 에너지 및 자원개발 | F67: 전력산업경쟁력강화및전력수급안정 | G67: 정보공개 공개 및 비공개 목록 | H67: 공개목록(청구제목, 청구내용, 담당부서), 비공개 목록(청구제목, 청구내용, 비공개사유, 담당부서) | I67: 기획∙전략 | J67: 1년 | K67: 홈페이지 | L67: ­
A68: 65 | B68: 한국전력기술 | C68: 기획처 | D68: 산업 ·중소기업 | E68: 에너지 및 자원개발 | F68: 전력산업경쟁력강화및전력수급안정 | G68: 정보공개 분야 국민의견 수렴 및 만족도 조사 결과 | H68: 분야(사전정보공표, 정보공개 청구 및 답변 등), 조사기간, 조사대상, 조사결과, 의견수렴 결과 및 개선 내용 | I68: 기획∙전략 | J68: 1년 | K68: 홈페이지 | L68: ­
A69: 66 | B69: 한국전력기술 | C69: 기획처 | D69: 산업 ·중소기업 | E69: 에너지 및 자원개발 | F69: 전력산업경쟁력강화및전력수급안정 | G69: 수입 및 지출현황 | H69: 기관 수입 및 지출실적 현황 | I69: 기획∙전략 | J69: 1년 | K69: 홈페이지 | L69: 해당
A70: 67 | B70: 한국전력기술 | C70: 기획처 | D70: 산업 ·중소기업 | E70: 에너지 및 자원개발 | F70: 전력산업경쟁력강화및전력수급안정 | G70: 사업부서 운영현황 | H70: 본부/단별 주요 사업부서 운영 목록 | I70: 기획∙전략 | J70: 1년 | K70: 홈페이지 | L70: 해당
A71: 68 | B71: 한국전력기술 | C71: 기획처 | D71: 산업 ·중소기업 | E71: 에너지 및 자원개발 | F71: 전력산업경쟁력강화및전력수급안정 | G71: 방만경영 정상화 계획 | H71: 방만경영 개선계획(기존 및 추가과제), 이행완료 여부 공개 | I71: 기획∙전략 | J71: 1년 | K71: 홈페이지 | L71: 해당
A72: 69 | B72: 한국전력기술 | C72: 기획처 | D72: 산업 ·중소기업 | E72: 에너지 및 자원개발 | F72: 전력산업경쟁력강화및전력수급안정 | G72: 임원현황 | H72: 성명, 생년, 학력, 주요경력, 임기 등 | I72: 기획∙전략 | J72: 1년 | K72: 홈페이지 | L72: 해당
A73: 70 | B73: 한국전력기술 | C73: 기획처 | D73: 산업 ·중소기업 | E73: 에너지 및 자원개발 | F73: 전력산업경쟁력강화및전력수급안정 | G73: 정보공개 운영현황 | H73: 연도별 정보공개 처리건수, 공개비율 | I73: 기획∙전략 | J73: 1년 | K73: 홈페이지 | L73: 해당
A74: 71 | B74: 한국전력기술 | C74: 기획처 | D74: 산업 ·중소기업 | E74: 에너지 및 자원개발 | F74: 전력산업경쟁력강화및전력수급안정 | G74: 알리오 공시벌점 현황 | H74: 기재부 알리오 공시 점검결과 | I74: 기획∙전략 | J74: 1년 | K74: 홈페이지 | L74: 해당
A75: 72 | B75: 한국전력기술 | C75: 기획처 | D75: 산업 ·중소기업 | E75: 에너지 및 자원개발 | F75: 전력산업경쟁력강화및전력수급안정 | G75: 중기인력운용 계획 | H75: 수립개요, 부문별 인력계획 | I75: 인사∙총무∙회계 | J75: 1년 | K75: 홈페이지 | L75: ­
A76: 73 | C76: 기획처 | D76: 산업 ·중소기업 | E76: 에너지 및 자원개발 | F76: 전력산업경쟁력강화및전력수급안정 | G76: 회사 주요사업 현황 | H76: 회사 주요사업 현황(사업명, 발주처, 사업기간, 역무, 예산 등) | I76: 기획∙전략 | J76: 1년 | K76: 홈페이지
A77: 74 | B77: 한국전력기술 | C77: 경영지원처 | D77: 산업 ·중소기업 | E77: 에너지 및 자원개발 | F77: 전력산업경쟁력강화및전력수급안정 | G77: 부서장 업무추진비성 경비 사용내역 | H77: 직위, 사용일자, 사용금액, 사용목적, 참석대상 | I77: 인사∙총무∙회계 | J77: 1년 | K77: 홈페이지 | L77: ­
A78: 75 | B78: 한국전력기술 | C78: 경영지원처 | D78: 산업 ·중소기업 | E78: 에너지 및 자원개발 | F78: 전력산업경쟁력강화및전력수급안정 | G78: 임원(기관장 제외) 업무추진비성 경비 사용내역 | H78: 직위, 사용일자, 사용금액, 사용목적, 참석대상 | I78: 인사∙총무∙회계 | J78: 매월 | K78: 홈페이지 | L78: ­
A79: 76 | B79: 한국전력기술 | C79: 경영지원처 | D79: 산업 ·중소기업 | E79: 에너지 및 자원개발 | F79: 전력산업경쟁력강화및전력수급안정 | G79: 기관장 업무추진비성 경비 사용내역 | H79: 직위, 사용일자, 사용금액, 사용목적, 참석대상 | I79: 인사∙총무∙회계 | J79: 매울 | K79: 홈페이지 | L79: 해당
A80: 77 | B80: 한국전력기술 | C80: 경영지원처 | D80: 산업 ·중소기업 | E80: 에너지 및 자원개발 | F80: 전력산업경쟁력강화및전력수급안정 | G80: 차량보유현황 | H80: 차종, 차명, 구입년도, 사용용도 | I80: 인사∙총무∙회계 | J80: 1년 | K80: 홈페이지 | L80: 해당
A81: 78 | B81: 한국전력기술 | C81: 경영지원처 | D81: 산업 ·중소기업 | E81: 에너지 및 자원개발 | F81: 전력산업경쟁력강화및전력수급안정 | G81: 청사현황 및 시설사용 안내 | H81: 청사현황(연면적, 층수, 주요시설물, 주차대수, 용도), 시설사용(시설명, 사용가능 시간, 사용료) | I81: 인사∙총무∙회계 | J81: 1년 | K81: 홈페이지 | L81: ­
A82: 79 | B82: 한국전력기술 | C82: 경영지원처 | D82: 산업 ·중소기업 | E82: 에너지 및 자원개발 | F82: 전력산업경쟁력강화및전력수급안정 | G82: 청사 에너지관리 현황 | H82: 전기, 수도, 가스 등 에너지 사용량, 전년 동월 대비 사용량과 비교, 사용 증감내역, 증감사유 | I82: 인사∙총무∙회계 | J82: 1년 | K82: 홈페이지 | L82: ­
A83: 80 | B83: 한국전력기술 | C83: 경영지원처 | D83: 산업 ·중소기업 | E83: 에너지 및 자원개발 | F83: 전력산업경쟁력강화및전력수급안정 | G83: 수익시설물 및 이용료 현황 | H83: 시설물 종류, 명칭, 소재지, 이용료 산정기준, 이용취소 절차 및 환급금액 등 | I83: 인사∙총무∙회계 | J83: 1년 | K83: 홈페이지 | L83: ­
A84: 81 | B84: 한국전력기술 | C84: 경영지원처 | D84: 산업 ·중소기업 | E84: 에너지 및 자원개발 | F84: 전력산업경쟁력강화및전력수급안정 | G84: 주요자산관리 현황 | H84: 자산명, 취득일자, 취득원가, 잔존가액, 처분현황 | I84: 인사∙총무∙회계 | J84: 1년 | K84: 홈페이지 | L84: ­
A85: 82 | B85: 한국전력기술 | C85: 경영지원처 | D85: 산업 ·중소기업 | E85: 에너지 및 자원개발 | F85: 전력산업경쟁력강화및전력수급안정 | G85: 사옥 시설물 현황 | H85: 사옥 시설물 현황 | I85: 인사∙총무∙회계 | J85: 1년 | K85: 홈페이지 | L85: 해당
A86: 83 | B86: 한국전력기술 | C86: 경영지원처 | D86: 산업 ·중소기업 | E86: 에너지 및 자원개발 | F86: 전력산업경쟁력강화및전력수급안정 | G86: 사옥관리 용역 현황 | H86: 사옥관리 용역 현황 | I86: 인사∙총무∙회계 | J86: 1년 | K86: 홈페이지 | L86: 해당
A87: 84 | B87: 한국전력기술 | C87: 경영지원처 | D87: 산업 ·중소기업 | E87: 에너지 및 자원개발 | F87: 전력산업경쟁력강화및전력수급안정 | G87: 사옥 조형물 설치 현황 | H87: 사옥 조형물 설치 현황 | I87: 인사∙총무∙회계 | J87: 1년 | K87: 홈페이지 | L87: 해당
A88: 85 | B88: 한국전력기술 | C88: 경영지원처 | D88: 산업 ·중소기업 | E88: 에너지 및 자원개발 | F88: 전력산업경쟁력강화및전력수급안정 | G88: 사옥 신재생에너지 생산 현황 | H88: 사옥 신재생에너지 생산 현황 | I88: 인사∙총무∙회계 | J88: 분기 | K88: 홈페이지 | L88: 해당
A89: 86 | B89: 한국전력기술 | C89: 경영지원처 | D89: 산업 ·중소기업 | E89: 에너지 및 자원개발 | F89: 전력산업경쟁력강화및전력수급안정 | G89: 종전부동산(사옥) 매각 현황 | H89: 종전부동산(사옥) 매각 현황 | I89: 인사∙총무∙회계 | J89: 분기 | K89: 홈페이지 | L89: 해당 | M89: 지원업무
A90: 87 | B90: 한국전력기술 | C90: 경영지원처 | D90: 산업 ·중소기업 | E90: 에너지 및 자원개발 | F90: 전력산업경쟁력강화및전력수급안정 | G90: 3년간 요약 재무상태표 | H90: 3년간 요약 재무상태표 | I90: 인사∙총무∙회계 | J90: 1년 | K90: 홈페이지 | L90: 해당 | M90: 지원업무
A91: 88 | B91: 한국전력기술 | C91: 경영지원처 | D91: 산업 ·중소기업 | E91: 에너지 및 자원개발 | F91: 전력산업경쟁력강화및전력수급안정 | G91: 3년간 요약 손익계산서 | H91: 3년간 요약 손익계산서 | I91: 인사∙총무∙회계 | J91: 1년 | K91: 홈페이지 | L91: 해당 | M91: 지원업무
A92: 89 | B92: 한국전력기술 | C92: 경영지원처 | D92: 산업 ·중소기업 | E92: 에너지 및 자원개발 | F92: 전력산업경쟁력강화및전력수급안정 | G92: 세금납부 현항 | H92: 법인세 납부현황(과세표준, 납부세액), 부가가치세 납부현황(과세표준, 매출세액, 매입세액, 납부세액), 종합부동산세 납부현황(과세표준, 납부세액), 지방세 납부현황(지방세 세목별 납부실적) | I92: 인사∙총무∙회계 | J92: 1년 | K92: 홈페이지 | L92: ­ | M92: 지원업무
A93: 90 | B93: 한국전력기술 | C93: 경영지원처 | D93: 산업 ·중소기업 | E93: 에너지 및 자원개발 | F93: 전력산업경쟁력강화및전력수급안정 | G93: 법인카드 관리 현황 | H93: 구분(본사, 사업소 등), 발급개수, 사용제한 시간 및 업종 | I93: 인사∙총무∙회계 | J93: 1년 | K93: 홈페이지 | L93: ­ | M93: 지원업무
A94: 91 | B94: 한국전력기술 | C94: 경영지원처 | D94: 산업 ·중소기업 | E94: 에너지 및 자원개발 | F94: 전력산업경쟁력강화및전력수급안정 | G94: 법인카드 포인트 발생 및 사용내역 | H94: 법인카드 포인트 발생내역(전년도 이월금액, 당해연도 발생금액, 합계금액), 사용내역(일자, 사용금액, 사용처 등) | I94: 인사∙총무∙회계 | J94: 1년 | K94: 홈페이지 | L94: ­ | M94: 지원업무
A95: 92 | B95: 한국전력기술 | C95: 경영지원처 | D95: 산업 ·중소기업 | E95: 에너지 및 자원개발 | F95: 전력산업경쟁력강화및전력수급안정 | G95: 주주총회 개최 현황 | H95: 주주총회 개최일, 주주총회 안건, 주주총회 결과 | I95: 인사∙총무∙회계 | J95: 1년 | K95: 홈페이지 | L95: 해당 | M95: 지원업무
A96: 93 | B96: 한국전력기술 | C96: 경영지원처 | D96: 산업 ·중소기업 | E96: 에너지 및 자원개발 | F96: 전력산업경쟁력강화및전력수급안정 | G96: 제출기관별 공시 실시 현황 | H96: 한국거래소 및 금융감독원 대상 공시 제출 현황 | I96: 인사∙총무∙회계 | J96: 1년 | K96: 홈페이지 | L96: 해당 | M96: 지원업무
A97: 94 | B97: 한국전력기술 | C97: 인사노무처 | D97: 산업 ·중소기업 | E97: 에너지 및 자원개발 | F97: 전력산업경쟁력강화및전력수급안정 | G97: 3년간 신규채용 현황 | H97: 인원수, 비율 | I97: 인사∙총무∙회계 | J97: 반기 | K97: 홈페이지 | L97: 해당
A98: 95 | B98: 한국전력기술 | C98: 인사노무처 | D98: 산업 ·중소기업 | E98: 에너지 및 자원개발 | F98: 전력산업경쟁력강화및전력수급안정 | G98: 임원 해외출장 내역 | H98: 직위, 출장목적, 출장기간, 출장결과 보고서 | I98: 인사∙총무∙회계 | J98: 반기 | K98: 홈페이지 | L98: ­
A99: 96 | B99: 한국전력기술 | C99: 인사노무처 | D99: 산업 ·중소기업 | E99: 에너지 및 자원개발 | F99: 전력산업경쟁력강화및전력수급안정 | G99: 3년간 직종별 인력현황 | H99: 인원수, 비율 | I99: 인사∙총무∙회계 | J99: 반기 | K99: 홈페이지 | L99: 해당
A100: 97 | B100: 한국전력기술 | C100: 인사노무처 | D100: 산업 ·중소기업 | E100: 에너지 및 자원개발 | F100: 전력산업경쟁력강화및전력수급안정 | G100: 3년간 학력별 인력현황 | H100: 인원수, 비율 | I100: 인사∙총무∙회계 | J100: 반기 | K100: 홈페이지 | L100: 해당
A101: 98 | B101: 한국전력기술 | C101: 인사노무처 | D101: 산업 ·중소기업 | E101: 에너지 및 자원개발 | F101: 전력산업경쟁력강화및전력수급안정 | G101: 비위면직자 취업제한 제도 | H101: 제도취지, 취업제한 범위 및 내용 등 | I101: 인사∙총무∙회계 | J101: 1년 | K101: 홈페이지 | L101: ­
A102: 99 | B102: 한국전력기술 | C102: 인사노무처 | D102: 산업 ·중소기업 | E102: 에너지 및 자원개발 | F102: 전력산업경쟁력강화및전력수급안정 | G102: 채용통계 | H102: 채용개요, 채용인원, 지원인원, 경쟁률 | I102: 인사∙총무∙회계 | J102: 1년 | K102: 홈페이지 | L102: ­
A103: 100 | B103: 한국전력기술 | C103: 인사노무처 | D103: 산업 ·중소기업 | E103: 에너지 및 자원개발 | F103: 전력산업경쟁력강화및전력수급안정 | G103: 직원 초과근무수당 지급 내역 | H103: 부서명, 초과근무시간, 초과근무수당 지급액, 1인당 평균 초과근무시간, 1인당 초과근무수당 지급액 | I103: 인사∙총무∙회계 | J103: 1년 | K103: 홈페이지 | L103: ­
A104: 101 | B104: 한국전력기술 | C104: 인사노무처 | D104: 산업 ·중소기업 | E104: 에너지 및 자원개발 | F104: 전력산업경쟁력강화및전력수급안정 | G104: 3년간 자격별 인력현황 | H104: 인원수, 비율 | I104: 인사∙총무∙회계 | J104: 반기 | K104: 홈페이지 | L104: 해당
A105: 102 | B105: 한국전력기술 | C105: 인사노무처 | D105: 산업 ·중소기업 | E105: 에너지 및 자원개발 | F105: 전력산업경쟁력강화및전력수급안정 | G105: 항공마일리지 발생 및 사용 내역 | H105: 항공마일리지 발생내역(전년도 이월내역, 당해연도 발생내역, 발생내역 합계), 사용내역 | I105: 인사∙총무∙회계 | J105: 1년 | K105: 홈페이지 | L105: ­
A106: 103 | B106: 한국전력기술 | C106: 인사노무처 | D106: 산업 ·중소기업 | E106: 에너지 및 자원개발 | F106: 전력산업경쟁력강화및전력수급안정 | G106: 개인정보 처리업무 위탁현황 | H106: 부서명, 수탁기관, 위탁내용 | I106: 인사∙총무∙회계 | J106: 1년 | K106: 홈페이지 | L106: ­
A107: 104 | B107: 한국전력기술 | C107: 인사노무처 | D107: 산업 ·중소기업 | E107: 에너지 및 자원개발 | F107: 전력산업경쟁력강화및전력수급안정 | G107: 개인정보 제3자 제공현황 | H107: 수탁자, 이용목적, 항목, 보유(이용)기간 | I107: 인사∙총무∙회계 | J107: 1년 | K107: 홈페이지 | L107: ­
A108: 105 | B108: 한국전력기술 | C108: 인사노무처 | D108: 산업 ·중소기업 | E108: 에너지 및 자원개발 | F108: 전력산업경쟁력강화및전력수급안정 | G108: 3년간 유연근무 현황 | H108: 인원수 | I108: 인사∙총무∙회계 | J108: 반기 | K108: 홈페이지 | L108: 해당
A109: 106 | B109: 한국전력기술 | C109: 인사노무처 | D109: 산업 ·중소기업 | E109: 에너지 및 자원개발 | F109: 전력산업경쟁력강화및전력수급안정 | G109: 대외기관 개인수상 현황 | H109: 대외기관 개인수상 내역 및 내용 | I109: 인사∙총무∙회계 | J109: 1년 | K109: 홈페이지 | L109: 해당
A110: 107 | B110: 한국전력기술 | C110: 인사노무처 | D110: 산업 ·중소기업 | E110: 에너지 및 자원개발 | F110: 전력산업경쟁력강화및전력수급안정 | G110: 대외 포상 수상내용 | H110: 포상일시, 포상훈격, 포상대상자, 포상기관, 포상제목 | I110: 홍보∙대외협력 | J110: 1년 | K110: 홈페이지 | L110: ­
A111: 108 | B111: 한국전력기술 | C111: 인사노무처 | D111: 산업 ·중소기업 | E111: 에너지 및 자원개발 | F111: 전력산업경쟁력강화및전력수급안정 | G111: 노사 협의회 현황 | H111: 협의회 구성 및 기능, 협의회 운영 방법, 노사협의회 의결사항 | I111: 법무∙노무 | J111: 반기 | K111: 홈페이지 | L111: ­
A112: 109 | B112: 한국전력기술 | C112: 인사노무처 | D112: 산업 ·중소기업 | E112: 에너지 및 자원개발 | F112: 전력산업경쟁력강화및전력수급안정 | G112: 노동쟁의 현황 | H112: 노동쟁의 현황 | I112: 법무∙노무 | J112: 반기 | K112: 홈페이지 | L112: 해당
A113: 110 | B113: 한국전력기술 | C113: 인사노무처 | D113: 산업 ·중소기업 | E113: 에너지 및 자원개발 | F113: 전력산업경쟁력강화및전력수급안정 | G113: 노사협의체 현황 | H113: 노사 위원 명단, 협의체 수, 수행업무 | I113: 법무∙노무 | J113: 1년 | K113: 홈페이지 | L113: 해당
A114: 111 | B114: 한국전력기술 | C114: 인사노무처 | D114: 산업 ·중소기업 | E114: 에너지 및 자원개발 | F114: 전력산업경쟁력강화및전력수급안정 | G114: 상급단체 전임 현황 | H114: 상급단체 전임 취임 여부, 전임자 명단 | I114: 법무∙노무 | J114: 1년 | K114: 홈페이지 | L114: 해당
A115: 112 | B115: 한국전력기술 | C115: 인사노무처 | D115: 산업 ·중소기업 | E115: 에너지 및 자원개발 | F115: 전력산업경쟁력강화및전력수급안정 | G115: 노동조합 현황 | H115: 설립일, 조직형태, 상급단체, 조직도 | I115: 법무∙노무 | J115: 1년 | K115: 홈페이지 | L115: 해당
A116: 113 | B116: 한국전력기술 | C116: 인사노무처 | D116: 산업 ·중소기업 | E116: 에너지 및 자원개발 | F116: 전력산업경쟁력강화및전력수급안정 | G116: 기금지원사업 운용계획 | H116: 기금명, 설치개요, 기금지원사업 운용계획(기본방향, 사업내용 등) | I116: 인사∙총무∙회계 | J116: 1년 | K116: 홈페이지 | L116: ­
A117: 114 | B117: 한국전력기술 | C117: 인사노무처 | D117: 산업 ·중소기업 | E117: 에너지 및 자원개발 | F117: 전력산업경쟁력강화및전력수급안정 | G117: 기금지원사업 운영현황(실적) | H117: 기금지원사업 운영현황(사업명, 지원금액, 지원기준, 지원시기 등) | I117: 인사∙총무∙회계 | J117: 1년 | K117: 홈페이지 | L117: ­
A118: 115 | B118: 한국전력기술 | C118: 인사노무처 | D118: 산업 ·중소기업 | E118: 에너지 및 자원개발 | F118: 전력산업경쟁력강화및전력수급안정 | G118: 해외 파견직원 복리후생비 등 지급 내역 | H118: 파견국가명, 직급, 항목별 복리후생비 지급내역, 기타 지원비 지급내역 | I118: 인사∙총무∙회계 | J118: 1년 | K118: 홈페이지 | L118: ­
A119: 116 | B119: 한국전력기술 | C119: 인사노무처 | D119: 산업 ·중소기업 | E119: 에너지 및 자원개발 | F119: 전력산업경쟁력강화및전력수급안정 | G119: 기숙사 운영 현황 | H119: 기숙사 운영 현황 | I119: 인사∙총무∙회계 | J119: 분기 | K119: 홈페이지 | L119: 해당
A120: 117 | B120: 한국전력기술 | C120: 인사노무처 | D120: 산업 ·중소기업 | E120: 에너지 및 자원개발 | F120: 전력산업경쟁력강화및전력수급안정 | G120: 외부기관 수상현황 | H120: 수상명, 수상자(이름 블라인드처리), 수상년도, 주관기관 | I120: 홍보∙대외협력 | J120: 1년 | K120: 홈페이지 | L120: 해당
A121: 118 | C121: 인사노무처 | D121: 산업 ·중소기업 | E121: 에너지 및 자원개발 | F121: 전력산업경쟁력강화및전력수급안정 | G121: 신입사원 공개채용 경쟁률 | H121: 당해년도 신입사원 공개채용시 직종별 응시자 수, 합격자 및 경쟁률 현황 | I121: 인사∙총무∙회계 | J121: 반기 | K121: 홈페이지
A122: 119 | B122: 한국전력기술 | C122: 계약관리실 | D122: 산업 ·중소기업 | E122: 에너지 및 자원개발 | F122: 전력산업경쟁력강화및전력수급안정 | G122: 협력업체 행동강령 | H122: 협력업체 행동강령(청렴서약, 청렴계약, 위반시 제재 등) 내용 | I122: 계약∙기타 | J122: 1년 | K122: 홈페이지 | L122: ­ | M122: 지원업무
A123: 120 | B123: 한국전력기술 | C123: 계약관리실 | D123: 산업 ·중소기업 | E123: 에너지 및 자원개발 | F123: 전력산업경쟁력강화및전력수급안정 | G123: 협력업체 포상내역 | H123: 업체명, 포상내역, 포상사유 | I123: 계약∙기타 | J123: 1년 | K123: 홈페이지 | L123: ­ | M123: 지원업무
A124: 121 | B124: 한국전력기술 | C124: 계약관리실 | D124: 산업 ·중소기업 | E124: 에너지 및 자원개발 | F124: 전력산업경쟁력강화및전력수급안정 | G124: 협력업체 상벌심의 결과 | H124: 업체명, 제재내역(제재명, 제재기간 등), 제재사유 | I124: 계약∙기타 | J124: 1년 | K124: 홈페이지 | L124: ­ | M124: 지원업무
A125: 122 | B125: 한국전력기술 | C125: 계약관리실 | D125: 산업 ·중소기업 | E125: 에너지 및 자원개발 | F125: 전력산업경쟁력강화및전력수급안정 | G125: 친환경제품 구매실적 | H125: 품목, 구매 수량 및 금액, 전체 물품 구매액 대비 비율 | I125: 계약∙기타 | J125: 1년 | K125: 홈페이지 | L125: ­ | M125: 지원업무
A126: 123 | B126: 한국전력기술 | C126: 계약관리실 | D126: 산업 ·중소기업 | E126: 에너지 및 자원개발 | F126: 전력산업경쟁력강화및전력수급안정 | G126: 노임단가 | H126: 엔지니어링 노임단가, 소프트웨어 노임단가 | I126: 계약∙기타 | J126: 1년 | K126: 홈페이지 | L126: ­ | M126: 지원업무
A127: 124 | B127: 한국전력기술 | C127: 계약관리실 | D127: 산업 ·중소기업 | E127: 에너지 및 자원개발 | F127: 전력산업경쟁력강화및전력수급안정 | G127: 계약심사 현황 | H127: 분야(전산, 토목, 건축 등), 유형(공사, 설계변경, 용역, 설비 등), 요청기관, 심사요청액, 심사액, 절감액, 우수사례 | I127: 계약∙기타 | J127: 1년 | K127: 홈페이지 | L127: ­ | M127: 지원업무
A128: 125 | B128: 한국전력기술 | C128: 계약관리실 | D128: 산업 ·중소기업 | E128: 에너지 및 자원개발 | F128: 전력산업경쟁력강화및전력수급안정 | G128: 1천만원이상 공사, 용역, 물품 계약 현황(수의계약 제외) | H128: 구분(공사, 용역, 물품), 계약명, 계약일자, 계약금액, 계약내역, 낙찰율, 계약업체(업체명, 소재지, 대표자), 담당부서 | I128: 계약∙기타 | J128: 반기 | K128: 홈페이지 | L128: ­ | M128: 지원업무
A129: 126 | B129: 한국전력기술 | C129: 계약관리실 | D129: 산업 ·중소기업 | E129: 에너지 및 자원개발 | F129: 전력산업경쟁력강화및전력수급안정 | G129: 500만원 이상 공사, 용역, 물품 수의계약 현황 | H129: 구분(공사, 용역, 물품), 계약명, 계약일자, 계약금액, 계약내역, 계약업체(업체명, 소재지, 대표자), 수의계약사유, 담당부서 | I129: 계약∙기타 | J129: 반기 | K129: 홈페이지 | L129: ­ | M129: 지원업무
A130: 127 | B130: 한국전력기술 | C130: 계약관리실 | D130: 산업 ·중소기업 | E130: 에너지 및 자원개발 | F130: 전력산업경쟁력강화및전력수급안정 | G130: 1억원이상 공사, 용역, 물품 발주계획 | H130: 구분(공사, 용역, 물품), 명칭, 시기, 물량 및 규모, 도급액, 입찰방법, 담당부서, 전화번호 | I130: 계약∙기타 | J130: 분기 | K130: 홈페이지 | L130: ­ | M130: 지원업무
A131: 128 | B131: 한국전력기술 | C131: 계약관리실 | D131: 산업 ·중소기업 | E131: 에너지 및 자원개발 | F131: 전력산업경쟁력강화및전력수급안정 | G131: 사업수행능력평가기준 | H131: 사업수행능력평가기준 | I131: 계약∙기타 | J131: 1년 | K131: 홈페이지 | L131: 해당 | M131: 지원업무
A132: 129 | B132: 한국전력기술 | C132: 계약관리실 | D132: 산업 ·중소기업 | E132: 에너지 및 자원개발 | F132: 전력산업경쟁력강화및전력수급안정 | G132: 사업보유면허관리현황 | H132: 사업보유면허관리현황 | I132: 계약∙기타 | J132: 1년 | K132: 홈페이지 | L132: 해당 | M132: 지원업무
A133: 130 | B133: 한국전력기술 | C133: 계약관리실 | D133: 산업 ·중소기업 | E133: 에너지 및 자원개발 | F133: 전력산업경쟁력강화및전력수급안정 | G133: 용역적격심사기준 | H133: 용역적격심사기준 | I133: 계약∙기타 | J133: 1년 | K133: 홈페이지 | L133: 해당 | M133: 지원업무
A134: 131 | B134: 한국전력기술 | C134: 계약관리실 | D134: 산업 ·중소기업 | E134: 에너지 및 자원개발 | F134: 전력산업경쟁력강화및전력수급안정 | G134: 물품적격심사기준 | H134: 물품적격심사기준 | I134: 계약∙기타 | J134: 1년 | K134: 홈페이지 | L134: 해당 | M134: 지원업무
A135: 132 | B135: 한국전력기술 | C135: 계약관리실 | D135: 산업 ·중소기업 | E135: 에너지 및 자원개발 | F135: 전력산업경쟁력강화및전력수급안정 | G135: 공사적격심사기준 | H135: 공사적격심사기준 | I135: 계약∙기타 | J135: 1년 | K135: 홈페이지 | L135: 해당 | M135: 지원업무
A136: 133 | B136: 한국전력기술 | C136: 계약관리실 | D136: 산업 ·중소기업 | E136: 에너지 및 자원개발 | F136: 전력산업경쟁력강화및전력수급안정 | G136: 입찰평가위원진 구성 및 운영지침 | H136: 입찰평가위원진 구성 및 운영지침 | I136: 계약∙기타 | J136: 1년 | K136: 홈페이지 | L136: 해당 | M136: 지원업무
A137: 134 | B137: 한국전력기술 | C137: 계약관리실 | D137: 산업 ·중소기업 | E137: 에너지 및 자원개발 | F137: 전력산업경쟁력강화및전력수급안정 | G137: 표준수의계약운영업무지침 | H137: 표준수의계약운영업무지침 | I137: 계약∙기타 | J137: 1년 | K137: 홈페이지 | L137: 해당 | M137: 지원업무
A138: 135 | B138: 한국전력기술 | C138: 계약관리실 | D138: 산업 ·중소기업 | E138: 에너지 및 자원개발 | F138: 전력산업경쟁력강화및전력수급안정 | G138: 협상에의한계약운영기준 | H138: 협상에의한계약운영기준 | I138: 계약∙기타 | J138: 1년 | K138: 홈페이지 | L138: 해당 | M138: 지원업무
A139: 136 | B139: 한국전력기술 | C139: 계약관리실 | D139: 산업 ·중소기업 | E139: 에너지 및 자원개발 | F139: 전력산업경쟁력강화및전력수급안정 | G139: 포괄 손해배상보험 가입 현황 | H139: 계약기간, 보험업체 | I139: 기획∙전략 | J139: 1년 | K139: 홈페이지 | L139: 해당
A140: 137 | B140: 한국전력기술 | C140: 안전보안실 | D140: 산업 ·중소기업 | E140: 에너지 및 자원개발 | F140: 전력산업경쟁력강화및전력수급안정 | G140: 보안점검 결과 | H140: 구분(자체점검, 외부기관 점검), 점검일시, 점검대상, 점검결과, 조치결과 | I140: 인사∙총무∙회계 | J140: 반기 | K140: 홈페이지 | L140: ­ | M140: 지원업무
A141: 138 | B141: 한국전력기술 | C141: 안전보안실 | D141: 산업 ·중소기업 | E141: 에너지 및 자원개발 | F141: 전력산업경쟁력강화및전력수급안정 | G141: 개인정보 보호방침 | H141: 개인정보처리 목적, 개인정보 처리 및 보유현황, 제3자제공, 위탁현황, 항목, 파기, 안전성 확보조치, 열람청구방법 등 | I141: 정보화 | J141: 1년 | K141: 홈페이지 | L141: ­ | M141: 지원업무
A142: 139 | B142: 한국전력기술 | C142: 안전보안실 | D142: 산업 ·중소기업 | E142: 에너지 및 자원개발 | F142: 전력산업경쟁력강화및전력수급안정 | G142: 개인정보파일 보유현황 | H142: 명칭, 부서명, 운영근거, 운영목적, 보유기간, 정보주체수 | I142: 정보화 | J142: 1년 | K142: 홈페이지 | L142: ­ | M142: 지원업무
A143: 140 | B143: 한국전력기술 | C143: 안전보안실 | D143: 산업 ·중소기업 | E143: 에너지 및 자원개발 | F143: 전력산업경쟁력강화및전력수급안정 | G143: 정보보안경영시스템 인증 | H143: 인증개요, 인증기관, 인증범위, 인증활동 | I143: 정보화 | J143: 1년 | K143: 홈페이지 | L143: 해당 | M143: 지원업무
A144: 141 | B144: 한국전력기술 | C144: 안전보안실 | D144: 산업 ·중소기업 | E144: 에너지 및 자원개발 | F144: 전력산업경쟁력강화및전력수급안정 | G144: 연간보안교육 계획 | H144: 교육명, 교육내용, 교육대상자, 교육일정 | I144: 정보화 | J144: 1년 | K144: 홈페이지 | L144: 해당 | M144: 지원업무
A145: 142 | B145: 한국전력기술 | C145: 안전보안실 | D145: 산업 ·중소기업 | E145: 에너지 및 자원개발 | F145: 전력산업경쟁력강화및전력수급안정 | G145: 개인정보수집 관련 홈페이지 운영 현황 | H145: 도메인명, 홈페이지명, 고유식별정보 수집, 운영방식 | I145: 정보화 | J145: 1년 | K145: 홈페이지 | L145: 해당 | M145: 지원업무
A146: 143 | B146: 한국전력기술 | C146: 안전보안실 | D146: 산업 ·중소기업 | E146: 에너지 및 자원개발 | F146: 전력산업경쟁력강화및전력수급안정 | G146: 영상정보처리기기(CCTV) 설치,운영 현황 | H146: 영상정보처리기기(CCTV) 설치 및 운영 현황 | I146: 정보화 | J146: 1년 | K146: 홈페이지 | L146: 해당 | M146: 지원업무
A147: 144 | B147: 한국전력기술 | C147: 안전보안실 | D147: 산업 ·중소기업 | E147: 에너지 및 자원개발 | F147: 전력산업경쟁력강화및전력수급안정 | G147: 외부 방문객 출입현황 | H147: 내국인,외국인 출입현황 | I147: 정보화 | J147: 1년 | K147: 홈페이지 | L147: 해당 | M147: 지원업무
A148: 145 | B148: 한국전력기술 | C148: 안전보안실 | D148: 산업 ·중소기업 | E148: 에너지 및 자원개발 | F148: 전력산업경쟁력강화및전력수급안정 | G148: 클린룸 운영 현황 | H148: 봉인씰, 노트북, CD,USB등 검수현황 | I148: 정보화 | J148: 1년 | K148: 홈페이지 | L148: 해당 | M148: 지원업무
A149: 146 | B149: 한국전력기술 | C149: 안전보안실 | D149: 산업 ·중소기업 | E149: 에너지 및 자원개발 | F149: 전력산업경쟁력강화및전력수급안정 | G149: 설계업무용 소프트웨어 등록/폐기 현황 | H149: 분야별 소프트웨어 등록/폐기 수량 | I149: 정보화 | J149: 1년 | K149: 홈페이지 | L149: 해당 | M149: 지원업무
A150: 147 | B150: 한국전력기술 | C150: 혁신성장실 | D150: 산업 ·중소기업 | E150: 에너지 및 자원개발 | F150: 전력산업경쟁력강화및전력수급안정 | G150: 고객상담 Q&A | H150: 고객상담 주요질의 및 답변 내용 | I150: 홍보∙대외협력 | J150: 1년 | K150: 홈페이지 | L150: ­
A151: 148 | B151: 한국전력기술 | C151: 혁신성장실 | D151: 산업 ·중소기업 | E151: 에너지 및 자원개발 | F151: 전력산업경쟁력강화및전력수급안정 | G151: 명예대사 및 홍보대사 운영현황 | H151: 구분(명예대사, 홍보대사), 성명, 주요경력, 위촉사유, 위촉일, 위촉기간, 활동비 지급내역 | I151: 홍보∙대외협력 | J151: 1년 | K151: 홈페이지 | L151: ­
A152: 149 | B152: 한국전력기술 | C152: 혁신성장실 | D152: 산업 ·중소기업 | E152: 에너지 및 자원개발 | F152: 전력산업경쟁력강화및전력수급안정 | G152: 정보화사업 추진현황 | H152: 유형(홈페이지 개발·개편·통합·운영, 콘텐츠 제작 등), 사업명, 사업목적, 사업내용, 사업일정, 관련예산, 담당부서 | I152: 홍보∙대외협력 | J152: 1년 | K152: 홈페이지 | L152: ­
A153: 150 | B153: 한국전력기술 | C153: 혁신성장실 | D153: 산업 ·중소기업 | E153: 에너지 및 자원개발 | F153: 전력산업경쟁력강화및전력수급안정 | G153: 홍보관, 전시관, 박물관 등 현황 | H153: 명칭, 소재지, 규모, 주요시설, 운영기간, 운영예산, 인원, 운영시간 및 이용방법 | I153: 홍보∙대외협력 | J153: 1년 | K153: 홈페이지 | L153: ­
A154: 151 | B154: 한국전력기술 | C154: 혁신성장실 | D154: 산업 ·중소기업 | E154: 에너지 및 자원개발 | F154: 전력산업경쟁력강화및전력수급안정 | G154: 각종 공모전 개최현황 | H154: 공모전명, 공모기간, 수상내역, 수상작 소개, 담당자, 전화번호 | I154: 홍보∙대외협력 | J154: 1년 | K154: 홈페이지 | L154: ­
A155: 152 | B155: 한국전력기술 | C155: 혁신성장실 | D155: 산업 ·중소기업 | E155: 에너지 및 자원개발 | F155: 전력산업경쟁력강화및전력수급안정 | G155: 홍보자료 현황 | H155: 영상 및 인쇄 홍보물, 사보 등 | I155: 홍보∙대외협력 | J155: 1년 | K155: 홈페이지 | L155: ­
A156: 153 | B156: 한국전력기술 | C156: 혁신성장실 | D156: 산업 ·중소기업 | E156: 에너지 및 자원개발 | F156: 전력산업경쟁력강화및전력수급안정 | G156: 홍보용품 제작 현황 | H156: 제품명, 단가, 수량, 제작금액, 납품일자, 납품업체(대표자, 소재지 등), 배부부서 및 활용목적 | I156: 홍보∙대외협력 | J156: 1년 | K156: 홈페이지 | L156: ­
A157: 154 | B157: 한국전력기술 | C157: 혁신성장실 | D157: 산업 ·중소기업 | E157: 에너지 및 자원개발 | F157: 전력산업경쟁력강화및전력수급안정 | G157: 광고비 집행현황 | H157: 광고매체명, 기간 및 방법, 집행액 | I157: 홍보∙대외협력 | J157: 1년 | K157: 홈페이지 | L157: ­
A158: 155 | B158: 한국전력기술 | C158: 혁신성장실 | D158: 산업 ·중소기업 | E158: 에너지 및 자원개발 | F158: 전력산업경쟁력강화및전력수급안정 | G158: 국내 전시회 운영 실적 | H158: 국내 전시회 운영 횟수 등 | I158: 홍보∙대외협력 | J158: 1년 | K158: 홈페이지 | L158: 해당
A159: 156 | B159: 한국전력기술 | C159: 혁신성장실 | D159: 산업 ·중소기업 | E159: 에너지 및 자원개발 | F159: 전력산업경쟁력강화및전력수급안정 | G159: 국외 전시회 운영 실적 | H159: 국외 전시회 운영 횟수 등 | I159: 홍보∙대외협력 | J159: 1년 | K159: 홈페이지 | L159: 해당
A160: 157 | B160: 한국전력기술 | C160: 혁신성장실 | D160: 산업 ·중소기업 | E160: 에너지 및 자원개발 | F160: 전력산업경쟁력강화및전력수급안정 | G160: SNS 운영 실적 | H160: 공식 facebook 게시 횟수 등 | I160: 홍보∙대외협력 | J160: 1년 | K160: 홈페이지 | L160: 해당
A161: 158 | B161: 한국전력기술 | C161: 혁신성장실 | D161: 산업 ·중소기업 | E161: 에너지 및 자원개발 | F161: 전력산업경쟁력강화및전력수급안정 | G161: 홈페이지 뉴스레터 현황 | H161: 홈페이지 뉴스레터 수신자 수 등 | I161: 홍보∙대외협력 | J161: 1년 | K161: 홈페이지 | L161: 해당
A162: 159 | B162: 한국전력기술 | C162: 혁신성장실 | D162: 산업 ·중소기업 | E162: 에너지 및 자원개발 | F162: 전력산업경쟁력강화및전력수급안정 | G162: 언론보도 자료 리스트 | H162: 회사 보도자료 목록 등 | I162: 홍보∙대외협력 | J162: 1년 | K162: 홈페이지 | L162: 해당
A163: 160 | B163: 한국전력기술 | C163: 혁신성장실 | D163: 산업 ·중소기업 | E163: 에너지 및 자원개발 | F163: 전력산업경쟁력강화및전력수급안정 | G163: 캘린더 제작 부수 | H163: 회사 달력 제작 수량, 업체 등 | I163: 홍보∙대외협력 | J163: 1년 | K163: 홈페이지 | L163: 해당
A164: 161 | B164: 한국전력기술 | C164: 혁신성장실 | D164: 산업 ·중소기업 | E164: 에너지 및 자원개발 | F164: 전력산업경쟁력강화및전력수급안정 | G164: 광고이미지 제작 현황 | H164: 회사광고 이미지, 제작횟수 등 | I164: 홍보∙대외협력 | J164: 1년 | K164: 홈페이지 | L164: 해당
A165: 162 | B165: 한국전력기술 | C165: 혁신성장실 | D165: 산업 ·중소기업 | E165: 에너지 및 자원개발 | F165: 전력산업경쟁력강화및전력수급안정 | G165: 회사 홈페이지 방문자 현황 | H165: 월별 회사 홈페이지 방문자 수 현황 등 | I165: 홍보∙대외협력 | J165: 1년 | K165: 홈페이지 | L165: 해당
A166: 163 | B166: 한국전력기술 | C166: 혁신성장실 | D166: 산업 ·중소기업 | E166: 에너지 및 자원개발 | F166: 전력산업경쟁력강화및전력수급안정 | G166: 사회적 기업 지원현황 | H166: 지원대상(기업명, 기업소개 등), 지원내용 | I166: 인사∙총무∙회계 | J166: 1년 | K166: 홈페이지 | L166: ­
A167: 164 | B167: 한국전력기술 | C167: 혁신성장실 | D167: 산업 ·중소기업 | E167: 에너지 및 자원개발 | F167: 전력산업경쟁력강화및전력수급안정 | G167: 중소기업 제품 구매실적 | H167: 품목, 구매 수량 및 금액, 전체 물품 구매액 대비 비율 | I167: 계약∙기타 | J167: 1년 | K167: 홈페이지 | L167: ­
A168: 165 | B168: 한국전력기술 | C168: 혁신성장실 | D168: 산업 ·중소기업 | E168: 에너지 및 자원개발 | F168: 전력산업경쟁력강화및전력수급안정 | G168: 장애인 생산품 구매실적 | H168: 품목, 구매 수량 및 금액, 전체 물품 구매액 대비 비율 | I168: 계약∙기타 | J168: 1년 | K168: 홈페이지 | L168: ­
A169: 166 | B169: 한국전력기술 | C169: 혁신성장실 | D169: 산업 ·중소기업 | E169: 에너지 및 자원개발 | F169: 전력산업경쟁력강화및전력수급안정 | G169: 미래인재육성기반 사업 | H169: 장학금 대상 | I169: 기술∙교육∙품질 | J169: 1년 | K169: 홈페이지 | L169: 해당
A170: 167 | B170: 한국전력기술 | C170: 혁신성장실 | D170: 산업 ·중소기업 | E170: 에너지 및 자원개발 | F170: 전력산업경쟁력강화및전력수급안정 | G170: 이전지역 협력강화 | H170: 지자체 봉사활동 행사 참여현황 | I170: 홍보∙대외협력 | J170: 분기 | K170: 홈페이지 | L170: 해당
A171: 168 | B171: 한국전력기술 | C171: 혁신성장실 | D171: 산업 ·중소기업 | E171: 에너지 및 자원개발 | F171: 전력산업경쟁력강화및전력수급안정 | G171: 사회공헌 활동 현황 | H171: 계기(명절, 연말, 국군장병 위문, 기타 등), 지원일자, 지원대상, 지원내역, 지원금액, 재원조달(임직원 모금, 예산 등) | I171: 홍보∙대외협력 | J171: 반기 | K171: 홈페이지 | L171: ­
A172: 169 | B172: 한국전력기술 | C172: 혁신성장실 | D172: 산업 ·중소기업 | E172: 에너지 및 자원개발 | F172: 전력산업경쟁력강화및전력수급안정 | G172: 지역사회 공헌사업 현황 | H172: 사업명, 사업내용, 관련예산, 추진 경과 및 계획 | I172: 홍보∙대외협력 | J172: 반기 | K172: 홈페이지 | L172: ­
A173: 170 | B173: 한국전력기술 | C173: 혁신성장실 | D173: 산업 ·중소기업 | E173: 에너지 및 자원개발 | F173: 전력산업경쟁력강화및전력수급안정 | G173: 임직원 행동강령 및 지침 | H173: 임직원 행동강령 및 지침 내용 | I173: 감사∙윤리 | J173: 1년 | K173: 홈페이지 | L173: ­
A174: 171 | B174: 한국전력기술 | C174: 혁신성장실 | D174: 산업 ·중소기업 | E174: 에너지 및 자원개발 | F174: 전력산업경쟁력강화및전력수급안정 | G174: 청렴계약 및 윤리서약 | H174: 임원 직무청렴계약 및 직원 윤리서약 현황 | I174: 감사∙윤리 | J174: 1년 | K174: 홈페이지 | L174: ­
A175: 172 | B175: 한국전력기술 | C175: 혁신성장실 | D175: 산업 ·중소기업 | E175: 에너지 및 자원개발 | F175: 전력산업경쟁력강화및전력수급안정 | G175: 청렴교육 현황 | H175: 청렴교육 시행 내역(일시, 장소, 교육내용 등), 참석인원, 기관장 및 임원 참석여부 | I175: 감사∙윤리 | J175: 1년 | K175: 홈페이지 | L175: ­
A176: 173 | B176: 한국전력기술 | C176: 혁신성장실 | D176: 산업 ·중소기업 | E176: 에너지 및 자원개발 | F176: 전력산업경쟁력강화및전력수급안정 | G176: 청렴마일리지 운영 현황 | H176: 개요, 운영기간, 지표, 인센티브, 운영결과 | I176: 감사∙윤리 | J176: 1년 | K176: 홈페이지 | L176: ­
A177: 174 | B177: 한국전력기술 | C177: 혁신성장실 | D177: 산업 ·중소기업 | E177: 에너지 및 자원개발 | F177: 전력산업경쟁력강화및전력수급안정 | G177: 성희롱 예방교육 현황 | H177: 성희롱 예방교육 시행 내역(일시, 교육방법, 교육내용 등), 참석인원, 기관장 및 임원 참석여부 | I177: 감사∙윤리 | J177: 1년 | K177: 홈페이지 | L177: ­
A178: 175 | C178: 혁신성장실 | D178: 산업 ·중소기업 | E178: 에너지 및 자원개발 | F178: 전력산업경쟁력강화및전력수급안정 | G178: 인권경영헌장 | H178: 한국전력기술 인권경영 헌장 | I178: 감사∙윤리 | J178: 1년 | K178: 홈페이지
A179: 176 | B179: 한국전력기술 | C179: 혁신성장실 | D179: 산업 ·중소기업 | E179: 에너지 및 자원개발 | F179: 전력산업경쟁력강화및전력수급안정 | G179: 상품권 구입 및 배부 현황 | H179: 구입일자, 종류, 구입금액, 구입목적, 배부처, 배부금액 | I179: 계약∙기타 | J179: 매월 | K179: 홈페이지
A180: 177 | B180: 한국전력기술 | C180: 법무총괄반 | D180: 산업 ·중소기업 | E180: 에너지 및 자원개발 | F180: 전력산업경쟁력강화및전력수급안정 | G180: 진행중인 민사소송현황 | H180: 구분(행정, 민사), 사건명 | I180: 법무∙노무 | J180: 1년 | K180: 홈페이지 | L180: ­ | M180: 지원업무
A181: 178 | B181: 한국전력기술 | C181: 법무총괄반 | D181: 산업 ·중소기업 | E181: 에너지 및 자원개발 | F181: 전력산업경쟁력강화및전력수급안정 | G181: 종결된 소송현황 | H181: 구분(행정, 민사), 사건명 | I181: 법무∙노무 | J181: 1년 | K181: 홈페이지 | L181: 해당 | M181: 지원업무
A182: 179 | B182: 한국전력기술 | C182: 법무총괄반 | D182: 산업 ·중소기업 | E182: 에너지 및 자원개발 | F182: 전력산업경쟁력강화및전력수급안정 | G182: 진행중인 지적재산권 분쟁 현황 | H182: 구분(분쟁,소송,민원), 사건명, 처리결과 등 | I182: 법무∙노무 | J182: 1년 | K182: 홈페이지 | L182: 해당 | M182: 지원업무
A183: 180 | B183: 한국전력기술 | C183: 법무총괄반 | D183: 산업 ·중소기업 | E183: 에너지 및 자원개발 | F183: 전력산업경쟁력강화및전력수급안정 | G183: 진행중인 행정소송 현황 | H183: 구분(피소,제소), 사건명, 처리결과 등 | I183: 법무∙노무 | J183: 1년 | K183: 홈페이지 | L183: 해당 | M183: 지원업무
A184: 181 | B184: 한국전력기술 | C184: 법무총괄반 | D184: 산업 ·중소기업 | E184: 에너지 및 자원개발 | F184: 전력산업경쟁력강화및전력수급안정 | G184: 진행중인 형사소송 현황 | H184: 구분(고발,피고발), 사건명, 처리결과 등 | I184: 법무∙노무 | J184: 1년 | K184: 홈페이지 | L184: 해당 | M184: 지원업무
A185: 182 | B185: 한국전력기술 | C185: 법무총괄반 | D185: 산업 ·중소기업 | E185: 에너지 및 자원개발 | F185: 전력산업경쟁력강화및전력수급안정 | G185: 사내변호사 인력현황 | H185: 구분(국내, 외국), 인원수 | I185: 법무∙노무 | J185: 1년 | K185: 홈페이지 | L185: 해당 | M185: 지원업무
A186: 183 | B186: 한국전력기술 | C186: 법무총괄반 | D186: 산업 ·중소기업 | E186: 에너지 및 자원개발 | F186: 전력산업경쟁력강화및전력수급안정 | G186: 사내변호사 직무교육 현황 | H186: 교육명, 교육일정, 참여인원 | I186: 법무∙노무 | J186: 1년 | K186: 홈페이지 | L186: 해당 | M186: 지원업무
A187: 184 | B187: 한국전력기술 | C187: 법무총괄반 | D187: 산업 ·중소기업 | E187: 에너지 및 자원개발 | F187: 전력산업경쟁력강화및전력수급안정 | G187: 법무역량 교육 현황 | H187: 구분(사내, 외부), 교육명, 참여인원 | I187: 법무∙노무 | J187: 1년 | K187: 홈페이지 | L187: 해당 | M187: 지원업무
A188: 185 | B188: 한국전력기술 | C188: 법무총괄반 | D188: 산업 ·중소기업 | E188: 에너지 및 자원개발 | F188: 전력산업경쟁력강화및전력수급안정 | G188: 외부 변호사 운영현황 | H188: 법률고문명(법무법인 및 개인), 위촉기간 | I188: 법무∙노무 | J188: 1년 | K188: 홈페이지 | L188: ­
A189: 186 | B189: 한국전력기술 | C189: 법무총괄반 | D189: 산업 ·중소기업 | E189: 에너지 및 자원개발 | F189: 전력산업경쟁력강화및전력수급안정 | G189: 기관 관련 주요 법령 - 민사/상사 등 경영일반 관련 주요법령 | H189: 법, 시행령, 시행규칙 등 | I189: 법무∙노무 | J189: 1년 | K189: 홈페이지 | L189: - | M189: 지원업무
A190: 187 | B190: 한국전력기술 | C190: (원자력)원전안전센터 | D190: 산업 ·중소기업 | E190: 에너지 및 자원개발 | F190: 전력산업경쟁력강화및전력수급안정 | G190: 원전 안전관련기기 내진검증현황 | H190: 내진검증대상 기기목록, 검증방법, 검증문서현황 | I190: 기술∙교육∙품질 | J190: 분기 | K190: 홈페이지 | L190: 해당 | M190: 고유업무
A191: 188 | B191: 한국전력기술 | C191: (원자력)원전안전센터 | D191: 산업 ·중소기업 | E191: 에너지 및 자원개발 | F191: 전력산업경쟁력강화및전력수급안정 | G191: 원전 안전관련기기 내환경검증현황 | H191: 내환경검증대상 기기목록, 검증방법, 검증문서현황 | I191: 기술∙교육∙품질 | J191: 분기 | K191: 홈페이지 | L191: 해당 | M191: 고유업무
A192: 189 | B192: 한국전력기술 | C192: (원자력)원자력사업관리실 | D192: 산업 ·중소기업 | E192: 에너지 및 자원개발 | F192: 전력산업경쟁력강화및전력수급안정 | G192: 국내외 원자력 현장파견인력 현황(A/E) | H192: 파견지, 수행사업, 파견인원 등 | I192: 인사∙총무∙회계 | J192: 반기 | K192: 홈페이지 | L192: 해당 | M192: 고유업무
A193: 190 | B193: 한국전력기술 | C193: (원자력)원자력사업관리실 | D193: 산업 ·중소기업 | E193: 에너지 및 자원개발 | F193: 전력산업경쟁력강화및전력수급안정 | G193: 본부별 주요 계획 - 원자력본부 주요 계획 | H193: 본부명, 사업개요, 주요내용, 주요 추진계획 | I193: 기획∙전략 | J193: 1년 | K193: 홈페이지 | L193: ­ | M193: 지원업무
A194: 191 | B194: 한국전력기술 | C194: (원자력)원자력사업관리실 | D194: 산업 ·중소기업 | E194: 에너지 및 자원개발 | F194: 전력산업경쟁력강화및전력수급안정 | G194: 기관 관련 주요 법령 - 원자력 관련 주요법령 | H194: 법, 시행령, 시행규칙 등 | I194: 법무∙노무 | J194: 1년 | K194: 홈페이지 | L194: ­ | M194: 지원업무
A195: 192 | B195: 한국전력기술 | C195: (원자력)원자력사업관리실 | D195: 산업 ·중소기업 | E195: 에너지 및 자원개발 | F195: 전력산업경쟁력강화및전력수급안정 | G195: 원자력발전 노형별 이해 | H195: 노형별 조감도, 절개도, 차이점 등 | I195: 기술∙교육∙품질 | J195: 1년 | K195: 홈페이지 | L195: 해당 | M195: 고유업무
A196: 193 | B196: 한국전력기술 | C196: (원자력)원자력사업처 | D196: 산업 ·중소기업 | E196: 에너지 및 자원개발 | F196: 전력산업경쟁력강화및전력수급안정 | G196: 원자력관련 학술단체 회원등록 현황 | H196: 원자력 학술단체 현황, 우리회사가 회원사로 참여중인 학술단체 목록, 참여 학술활동 현황 | I196: 기술∙교육∙품질 | J196: 반기 | K196: 홈페이지 | L196: 해당 | M196: 지원업무
A197: 194 | B197: 한국전력기술 | C197: (원자력)원자력사업처 | D197: 산업 ·중소기업 | E197: 에너지 및 자원개발 | F197: 전력산업경쟁력강화및전력수급안정 | G197: 원전신흥도입국 지원현황 | H197: 원전신흥도입국 현황, 지원업무(행사명 등) 사례 | I197: 홍보∙대외협력 | J197: 반기 | K197: 홈페이지 | L197: 해당 | M197: 고유업무
A198: 195 | B198: 한국전력기술 | C198: (원자력)원자력사업처 | D198: 산업 ·중소기업 | E198: 에너지 및 자원개발 | F198: 전력산업경쟁력강화및전력수급안정 | G198: 세계 원자력산업 동향 | H198: 국가별 소식, 업체별 소식, 국제기구 소식, 신규원전 발주전망, 기술개발 현황 | I198: 홍보∙대외협력 | J198: 1년 | K198: 홈페이지 | L198: 해당 | M198: 고유업무
A199: 196 | B199: 한국전력기술 | C199: (원자력)원자력사업처 | D199: 산업 ·중소기업 | E199: 에너지 및 자원개발 | F199: 전력산업경쟁력강화및전력수급안정 | G199: 원자력본부 소개자료(국외용) | H199: 조직도,인력현황, 주요 사업개요 | I199: 홍보∙대외협력 | J199: 1년 | K199: 홈페이지 | L199: 해당 | M199: 고유업무
A200: 197 | B200: 한국전력기술 | C200: (원자력)원자력사업처 | D200: 산업 ·중소기업 | E200: 에너지 및 자원개발 | F200: 전력산업경쟁력강화및전력수급안정 | G200: 지사 및 연락사무소 현황 | H200: 위치, 지사장/소장 성명 및 연락처 | I200: 홍보∙대외협력 | J200: 1년 | K200: 홈페이지 | L200: 해당 | M200: 고유업무
... 20 more rows
